Workbook

Sheet Cover Page
D1: Add company logo
N2: Version 24.2b (for co-incinerators) - 27/11/24
N4: Note that there is another version of this template available for incinerators
B8: Add photo
N13: Notes:
N14: This template may require adjustments by individual operators to meet specific reporting requirements as defined in the site Permit(s)
B29: Annual Performance Report 2024
B31: Permit EPR/XP3030XX
B33: Enviropower Ltd
B35: other name of facility (if applicable)
B37: Enviropower Ltd
B39: Year: | C39: 2024
B41: Address: | C41: Unit 7 Marlborough Business Centre, 24 Marlborough Road, Lancing Business Park, Lancing, West Sussex, BN15 8TP
B43: Tel: | C43: 01903 768239
B45: Email: | C45: joe@enviropowerltd.co.uk
B47: Prepared by: | C47: Joe Timms | F47: Position: | G47: Operations Director
B49: Approved by: | C49: Joe Timms | F49: Position: | G49: Operations Director
B51: Version: | C51: 1
B53: Issue Date: | C53: 20th January 2025

Sheet Contents
A1: =+'Cover Page'!$B$29 -> Annual Performance Report 2024 | E1: =+'Cover Page'!$B$33 -> Enviropower Ltd
A3: Contents | K3: Notes:
A4: Section | B4: Subject | H4: Page | K4: Section references and Page nos. to be inserted
B5: Facility Information | K5: Sections and Subjects may require adjustment by individual operators to meet specific reporting requirements as defined in the sites Permit(s)
B6: Operational Data
B7: Operational Summary
B8: Performance Form 1
B9: Energy Form 1
B10: Permit Compliance
B11: Improvements
B12: Public Liaison
B13: Carbon dioxide and nitrous oxide emissions
B14: Residue Quality
B15: Emissions to Water
B16: Emissions to Air (periodically monitored)
B17: Emissions to Air (continuously monitored)
B18: Hydrogen Chloride emissions
B19: Sulphur Dioxide emissions
B20: Oxides of Nitrogen emissions
B21: Total Organic Carbon emissions
B22: Particulate Matter emissions
B23: Carbon Monoxide emissions
B24: Ammonia emissions
A27: Version Control
A28: Section | B28: Information | H28: Date
A35: Distribution
A36: Copy | B36: Name, Role | H36: No.
A45: This report is required under the Industrial Emissions Directive’s Article 55(2) requirements on reporting and public information on waste incineration plants and co-incineration plants, which require the operator to produce an annual report on the functioning and monitoring of the plant and make it available to the public.

Sheet Facility Info
A1: =+'Cover Page'!$B$29 -> Annual Performance Report 2024 | E1: =+'Cover Page'!$B$33 -> Enviropower Ltd
A3: Plant Description and Design | K3: Notes:
A5: The main purpose of the activity at the installation is to burn residual non-hazardous construction and demolition waste as fuel for the production of steam. The steam is used to drive a steam turbine to produce electricity for export to the national grid. The installation covers the entire combustion plant including all combustion lines, waste reception, storage, waste-fuel and air supply systems, boiler, facilities for the treatment of exhaust gases, on-site facilities for handling and storage of residues and waste water, stack, devices and systems for controlling combustion operations, recording and monitoring conditions. The plant has a design capacity of 9.5te/hr, which equates to approximately 75,000 tonnes per year at 7884 hour operation. The are two identical combustion lines. The heat produced is used to generate electricity for export to the national grid. The process generates approximately 4MW of electricity for export to the national grid. Facilities are maintained to allow steam or hot water pass-outs such that opportunities for use of heat may be capitalised upon should they become practicable. | K5: Include summary of plant design, design capacity, no. of combustion lines, electrical and heat capacity and any other general information that describes the facility, its location and purpose
A20: Summary of Operational Processes and Procedures
A22: Raw Materials: Waste is delivered to the plant via the waste recycling facility adjacent to the installation where it’s deposited into the inlet hopper of a Untha mobile-e shredder. The waste is then reduced to a maximum particle size of approximately 100mm. Ferrous and non-ferrous metals are then removed by a magnet and eddy current separator before the shredded waste is transferred to the fuel storage area from where it is fed into one of two reciprocating grate stoker fired combustion units and then incinerated. The furnaces are fitted with secondary chambers where the resulting flue gas is retained for >2seconds at >850 oC to ensure complete combustion. Urea is injected into the hot flue gas in the secondary chamber to reduce oxides of nitrogen (NOx) to nitrogen and water. The flue gas then passes through a heat exchanger where steam is raised to drive a steam turbine. The flue gas is then treated with sodium bicarbonate to neutralise acid gases and activated carbon to remove heavy metals, volatile organic compounds (VOCs) and dioxins and furans. Raw materials used in the process, apart from those referred to above, include small quantities of water treatment chemicals, oils, lubricants and biocides. These are all stored in bunded enclosures in the main process building. Combustion Process: There are two waste combustion streams in parallel. Each stream is served by a Talbott Bio-10000 moving grate combustor. At the end of the grate the solid residues fall into a water quench chamber and are then conveyed to storage bay. Primary combustion air is extracted from within the building and fed in below the waste through the grate bars and above the waste mass to promote good combustion. Secondary combustion air is injected into a cylindrical secondary chamber where it is mixed with the hot flue gas and the temperature raised to >850 oC for more than 2 seconds. Urea is injected into the outlet of the combustion chamber to react with the oxides of nitrogen, chemically reducing them to nitrogen and water. Auxiliary natural gas burners are fitted to assist in maintaining gas temperatures above 850oC for 2 seconds with a minimum of 6% oxygen content in the combustor. The oxygen concentration and temperature are carefully controlled to minimise dioxin emissions. Energy Recovery: The steam generating boilers are located at the exit of the flue gas from the secondary chamber. Hot gases pass through a series of heat exchangers and superheaters and finally through an economiser. The steam is fed to a steam turbine which generates electricity. Water for steam generation is taken from the town’s water main and is treated prior to use in the boilers. Steam is condensed in an air cooled vacuum condenser and then recycled to the boiler. All process waste waters are discharged directly to sewer in accordance with a trade effluent consent. Gas Cleaning: Flue gases pass from the boiler to the gas cleaning equipment. The design of the boilers is such that the flue gas temperature is quickly reduced through the critical temperature range thus minimising dioxin reformation. The gas enters a reaction chamber where sodium bicarbonate and activated carbon are injected to neutralise acid gases and absorb (primarily) dioxins, volatile organic compounds (VOCs), PAHs and mercury. The sodium bicarbonate injection rate is automatically controlled by upstream management of hydrogen chloride (HCl) and sulphur dioxide (SO2), the HCl and SO2 concentrations being continually monitored by CEMS to optimise sodium bicarbonate usage. Nitrogen oxides (NOx) abatement is achieved by the use of selective non-catalytic reduction (SNCR) and flue gas recirculation. The SNCR is based on the injection of urea into the furnace chambers before the sodium bicarbonate and carbon injection and before the gas passes to the bag filters. Bag filters remove the fine ash plus excess and spent sorbent as the gases pass across the bag fabric. The build up of the latter two enhances the performance of the system. Reverse pulses of compressed air are used to remove the accumulated particulate (“APC residues”) from the bags. The APC residues fall into a collection hopper and from there into 1m3 capacity ‘tote’ bags which are sealed when full and then stored within the main building prior to transport to a suitably licensed hazardous waste disposal facility. The cleaned gas then discharges to atmosphere via two 16-metre stacks. Ancillary Operations: De-mineralised water is required to compensate for boiler blow down losses. This is treated prior to use with chemicals such as sodium sulphate and sodium hydroxide to reduce hardness. These activities all take place within bunded areas within the main process building. Ash Handling: Bottom ash is sent off-site for aggregate recycling. APC residues are sent for disposal off site by licensed contractors subject to waste licensing legislation. Ferrous metals are sent for recovery off site by licensed contractors subject to waste permitting legislation. All other solid waste residues arising from the operation of the process will be removed from site, in enclosed containers, for disposal by suitable contractors. Liquid Effluent and Site Drainage: The plant uses approximately 20000 tonnes per year of potable water. This is largely made up of boiler blow down water. All other process waters, such as site wash down water and bottom ash quench are recycled within the process via a waste water tank and only where necessary discharged directly to sewer. There is no discharge of process liquids to controlled waters. Uncontaminated surface water is discharged via an interceptor to local surface water drains. Emissions Monitoring: Emissions from the stack are continuously monitored. In addition periodic sampling and measurement will be carried out for metals The appearance of the key release points of the main plant stack are monitored by CCTV. Date coded video records are available to supplement process records should they be required. The status log of a permit sets out the permitting history, including any changes to the permit reference number. | K22: Include summary of key processes and procedures such as (but not limited to); waste reception, control rooms, grate, bed and boiler, energy & heat generation, cooling systems, residue management, emission controls, health and safety systems, maintenance

Sheet Operational Data
A1: =+'Cover Page'!$B$29 -> Annual Performance Report 2024 | E1: =+'Cover Page'!$B$33 -> Enviropower Ltd
A3: Operational Data
A4: Plant Size | B4: 75000 | D4: tonnes pa | E4: 20 | F4: MWth | G4: 5 | H4: MWe | J4: Notes:
A5: No. of combustion lines | B5: 2 | D5: No. of Turbines: | F5: 1 | J5: * - RDF to include SRF
J6: ** - Combusted tonnage = tonnes delivered in period + (tonnes in bunker at start of period – tonnes in bunker at end of period), or equivalent calculation depending on plant type
A7: Waste types received | B7: Unit | C7: Q1 | D7: Q2 | E7: Q3 | F7: Q4 | G7: Year Total | H7: %
A8: Household / Local Authority | B8: tonnes | C8: 0 | D8: 0 | E8: 0 | F8: 0 | G8: =SUM(C8:F8) -> 0 | H8: =IF(G8>0,G8/$G$18,"-") -> -
A9: Commercial & Industrial | C9: 0 | D9: 0 | E9: 0 | F9: 0 | G9: =SUM(C9:F9) -> 0 | H9: - | J9: *** - CHP plants only
A10: Hazardous | C10: 0 | D10: 0 | E10: 0 | F10: 0 | G10: 0 | H10: - | J10: **** Availability Definition: 'the availability of a line is to be calculated by the number of hours the line reported Continuously Monitored emission levels to the Regulator through the calendar year divided by the total number of hours in that year. The overall plant availability is calculated as the Mean of all lines in the plant. For clarity this includes periods of abnormal operation.' Rationale: The primary function of an Energy from Waste facility is the disposal of waste. It follows therefore that the availability of a plant is determined by the period of time a facility spends undertaking this activity.
A11: Clinical | C11: 0 | D11: 0 | E11: 0 | F11: 0 | G11: 0 | H11: -
A12: Waste wood (biomass) | C12: 15580 | D12: 17731 | E12: 18202 | F12: 14334 | G12: 65847 | H12: 0.9658384182
A13: Refuse Derived Fuel * - H'hold/LA | C13: 0 | D13: 0 | E13: 0 | F13: 0 | G13: =SUM(C13:F13) -> 0 | H13: -
A14: Refuse Derived Fuel * - C&I | C14: 0 | D14: 0 | E14: 0 | F14: 0 | G14: 0 | H14: -
A15: Trommel Fines & Sawdust | C15: 636 | D15: 661 | E15: 538 | F15: 494 | G15: 2329 | H15: 0.03416158179
A16: Other [Please specify] | C16: 0 | D16: 0 | E16: 0 | F16: 0 | G16: 0 | H16: -
A17: Other [Please specify] | C17: 0 | D17: 0 | E17: 0 | F17: 0 | G17: 0 | H17: -
A18: Total waste received | C18: =SUM(C8:C17) -> 16216 | D18: =SUM(D8:D17) -> 18392 | E18: =SUM(E8:E17) -> 18740 | F18: =SUM(F8:F17) -> 14828 | G18: 68176
A19: Rejected Waste | C19: 0 | D19: 0 | E19: 0 | F19: 0 | G19: =SUM(C19:F19) -> 0 | H19: =IF(G19>0,G19/$G$18,"-") -> -
A20: Unprocessed waste transferred out | C20: 0 | D20: 0 | E20: 0 | F20: 0 | G20: =SUM(C20:F20) -> 0 | H20: =IF(G20>0,G20/$G$18,"-") -> -
A21: Total waste combusted ** | C21: 16080.7 | D21: 17734.8 | E21: 17675.2 | F21: 14574.1 | G21: =SUM(C21:F21) -> 66064.8
J22: Password for protected cells A password has been set to prevent accidental editing of cells with formulae. If you still need to make an edit for some reason then the password = 1234
A23: Energy Usage / Export | B23: Unit | C23: Q1 | D23: Q2 | E23: Q3 | F23: Q4 | G23: Year Total | H23: KWh/te
A24: Power Generated | B24: MWh | C24: 7673.03 | D24: 8997.57 | E24: 9330.15 | F24: 6521 | G24: =SUM(C24:F24) -> 32521.75 | H24: =IF(G24>0,G24*1000/$G$21,"-") -> 492.2704678
A25: Power Exported | C25: 5653.6 | D25: 6476.8 | E25: 6775.2 | F25: 5018.3 | G25: =SUM(C25:F25) -> 23923.9 | H25: =IF(G25>0,G25*1000/$G$21,"-") -> 362.1277897
A26: Power Used on site | C26: 2034.43 | D26: 2539.37 | E26: 2559.45 | F26: 1814.7 | G26: =SUM(C26:F26) -> 8947.95 | H26: =IF(G26>0,G26*1000/$G$21,"-") -> 135.4420206
A27: Power Imported | C27: 15 | D27: 18.6 | E27: 4.5 | F27: 312 | G27: 350.1 | H27: =IF(G27>0,G27*1000/$G$21,"-") -> 5.299342464
A28: Parasitic Load | B28: % | C28: =IF(C24>0,1-C25/(C24+C27),"-") -> 0.2646230569 | D28: =IF(D24>0,1-D25/(D24+D27),"-") -> 0.2816461979 | E28: =IF(E24>0,1-E25/(E24+E27),"-") -> 0.2741881056 | F28: =IF(F24>0,1-F25/(F24+F27),"-") -> 0.2655788087 | G28: =IF(G24>0,1-G25/(G24+G27),"-") -> 0.2722070708
A29: Thermal Energy Produced *** | B29: MWh | C29: 0 | D29: 0 | E29: 0 | F29: 0 | G29: =SUM(C29:F29) -> 0 | H29: =IF(G29>0,G29*1000/$G$21,"-") -> -
A30: Thermal Energy Exported *** | C30: 0 | D30: 0 | E30: 0 | F30: 0 | G30: 0 | H30: =IF(G30>0,G30*1000/$G$21,"-") -> -
A31: R1 value (if applicable) | B31: R1
A33: Waste Disposal & Recovery | B33: Unit | C33: Q1 | D33: Q2 | E33: Q3 | F33: Q4 | G33: Year Total | H33: % inputs
A34: APC Residues - produced | B34: tonnes | C34: 663 | D34: 984 | E34: 915 | F34: 803 | G34: =SUM(C34:F34) -> 3365 | H34: =IF(G34>0,G34/$G$21,"-") -> 0.05093483973
A35: IBA - produced | C35: 1517 | D35: 1587 | E35: 1944 | F35: 1529 | G35: 6577 | H35: =IF(G35>0,G35/$G$21,"-") -> 0.09955377145
A36: Metals recycling | C36: 37 | D36: 2 | E36: 0 | F36: 0 | G36: =SUM(C36:F36) -> 39 | H36: 0.0005903294947
A37: Other | C37: 0 | D37: 0 | E37: 0 | F37: 0 | G37: =SUM(C37:F37) -> 0 | H37: -
A38: Other | C38: 0 | D38: 0 | E38: 0 | F38: 0 | G38: 0 | H38: -
A39: Other | C39: 0 | D39: 0 | E39: 0 | F39: 0 | G39: 0 | H39: -
A41: Raw Material Usage | B41: Unit | C41: Q1 | D41: Q2 | E41: Q3 | F41: Q4 | G41: Year Total | H41: kg or Ltr /te
A42: Mains Water | B42: ltrs | C42: 4722000 | D42: 4887000 | E42: 6066000 | F42: 4699000 | G42: =SUM(C42:F42) -> 20374000 | H42: =IF(G42>0,G42/$G$21,"-") -> 308.3941827
A43: Other Water | B43: ltrs | C43: 0 | D43: 0 | E43: 0 | F43: 0 | G43: 0 | H43: =IF(G43>0,G43/$G$21,"-") -> -
A44: Ammonia | B44: kgs | C44: 0 | D44: 0 | E44: 0 | F44: 0 | G44: 0 | H44: -
A45: Urea | B45: kgs | C45: 40000 | D45: 63000 | E45: 40000 | F45: 40000 | G45: =SUM(C45:F45) -> 183000 | H45: 2.770007629
A46: Activated Carbon | B46: kgs | C46: 10000 | D46: 10000 | E46: 20000 | F46: 10000 | G46: 50000 | H46: 0.7568326855
A47: Sodium Bicarbonate | B47: kgs | C47: 391200 | D47: 732980 | E47: 609520 | F47: 615740 | G47: 2349440 | H47: 35.56265969
A48: Fuel oil | B48: ltrs | C48: 0 | D48: 0 | E48: 0 | F48: 0 | G48: 0 | H48: -
A49: Gas | B49: cuf | C49: 873826 | D49: 970518 | E49: 742738 | F49: 770531 | G49: 3357613
A50: Other | C50: 0 | D50: 0 | E50: 0 | F50: 0 | G50: 0
A52: Summary | B52: Line/Unit | C52: Q1 | D52: Q2 | E52: Q3 | F52: Q4 | G52: Year Total | I52: Hrs in year
A53: Availability of waste combustion by line, hrs **** | B53: 1 | C53: 1757.86 | D53: 2094.93 | E53: 2182.14 | F53: 1614.47 | G53: =SUM(C53:F53) -> 7649.4 | H53: =+G53/$I$53 -> 0.8708333333 | I53: 8784 | J53: Change this figure to 8784 in a leap year
B54: 2 | C54: 1874.84 | D54: 2086.64 | E54: 2120.91 | F54: 1525.03 | G54: 7607.42 | H54: =+G54/$I$53 -> 0.8660541894
B55: 3 | C55: 0 | D55: 0 | E55: 0 | F55: 0 | G55: 0 | H55: 0
B56: 4 | C56: 0 | D56: 0 | E56: 0 | F56: 0 | G56: 0 | H56: 0
B57: 5 | C57: 0 | D57: 0 | E57: 0 | F57: 0 | G57: =SUM(C57:F57) -> 0 | H57: 0
A58: Overall Availability, mean avg. of all lines, hrs | G58: =AVERAGE(G53:G54) -> 7628.41 | H58: 0.8684437614
A59: Hours of turbine operations, hrs | B59: 1 | C59: 2166.47 | D59: 2165.33 | E59: 2203.09 | F59: 1464.02 | G59: 7998.91 | H59: 0.9106227231
A60: Hours of turbine operations, hrs | B60: 2 | C60: 0 | D60: 0 | E60: 0 | F60: 0 | G60: 0 | H60: 0
A61: Hours of heat / steam export | C61: 0 | D61: 0 | E61: 0 | F61: 0 | G61: 0 | H61: =IF(B61>0,G60/I53,"n/a") -> n/a
A62: Net Calorific Value of waste | B62: MJ/kg | C62: 13.536 | D62: 14.715 | E62: 15.676 | F62: 15.876 | G62: 59.803
A63: Abnormal Events | B63: qty. | C63: 2 | D63: 2 | E63: 1 | F63: 8 | G63: 13 | H63: =IF(G63>0,"yes","no") -> yes
A64: Abnormal operation | B64: hours | C64: 2.5 | D64: 8.5 | E64: 0.5 | F64: 19 | G64: 30.5 | H64: =+(G64)/I53 -> 0.003472222222
A65: Permit Breaches | B65: qty. | C65: 1 | D65: 0 | E65: 0 | F65: 1 | G65: 2 | H65: =IF(G65>0,"yes","no") -> yes

Sheet Operational Summary
A1: =+'Cover Page'!$B$29 -> Annual Performance Report 2024 | E1: =+'Cover Page'!$B$33 -> Enviropower Ltd
A3: Summary of Plant Operations and Maintenance during the reporting year | K3: Notes:
A5: Lines A's Bag Filter modified to increase capacity and reduce velocities. Line A economiser replaced. Line B economiser replaced. | K5: Include summary of key operational and/or maintenance activity undertaken in the year, such as any major component upgrades and/or replacements
A29: Summary of Residue Handling for the reporting year
A31: Residues handled according to our internal residue handling procedures. APC Residue destination is Augean. IBA destination is Rabbit Waste Management. | K31: Include in here a summary of residue handling regimes and destinations
A54: ='Cover Page'!C39 -> 2024 | B54: Plant shut-downs
A55: Date | B55: Reason for shut-down | K55: Provide a very brief reason for plant shut-down e.g. "Shut-down prior to major outage"; "Emergency shut-down due to boiler tube leak" There is no need to include periods of hot-standby here (e.g. to clear feed chute hopper blockages). For clinical waste incinerators which require regular shut-downs for boiler cleaning, there is no need to record these here.
A56: January-March | B56: 13th Jan – 14th Jan: Line B down for economiser maintenance. 17th Jan – 18th Jan: Line B down for economiser maintenance. 22nd Jan: Line A down for fan maintenance. 24th Jan: Line A down for fan maintenance. 31st Jan: Line B down for fan maintenance. 13th Feb: Line A down for fan maintenance. 15th Feb – 16th Feb: Line A down for fan and turbine maintenance. 15th Feb – 17th Feb: Line B down for fan and turbine maintenance. 20th Feb: Line B down for fan maintenance. 23rd Feb: Line B down for fan maintenance. 28th Feb: Line B down for fan maintenance. 2nd Mar – 20th Mar: Line A down for planned maintenance. 19th Mar: Line B down for fan maintenance. 21st Mar – 30th Mar: Line B down for planned maintenance.
A57: April-June | B57: 6th Apr: Line A & B down due to failure of a level switch on the condensate receiver. 11th Apr: Line B down to clear blockages with additive screw and assess quality of sodium bicarbonate. 12th Apr: Line A down to preserve sodium bicarbonate and keep Line B operating. 4th May – 9th May: Line B down due to sodium bicarbonate supply issues. 5th May – 6th May: Line A down due to sodium bicarbonate supply issues. 23rd May: Line B down due to sub-quality sodium bicarbonate not maintaining emissions. 3rd Jun – 7th Jun: Line B down due to crane maintenance. 3rd Jun – 4th Jun: Line A down due to crane maintenance. 6th Jun – 7th Jun: Line A down due to bag filter discharge screw maintenance.
A58: July-September | B58: 23rd Jul – 25th Jul: Line B down for ID fan maintenance. 10th August: Line B down for boiler level controller replacement. 30th August: Line B down for ID fan maintenance. 27th & 28th September: Line B down for superheater maintenance.
A59: October-December | B59: 10th – 12th Nov: Line B shutdown to preserve sodium bicarbonate silo stock until the next delivery. 18th – 19th Nov: Line A shutdown to preserve sodium bicarbonate silo stock until the next delivery. 09th December: Line B shutdown to preserve sodium bicarbonate silo stock until the next delivery. 13th December: Line B down for ID fan maintenance. 17th – 31st December: Line B down for general maintenance. 18th – 31st December: Line A down for general maintenance.

Sheet Perf. Form 1
A1: =+'Cover Page'!C39 -> 2024 | B1: Annual Reporting Performance Form 1
A3: =+'Cover Page'!B31 -> Permit EPR/XP3030XX | F3: Operator: | G3: =+'Cover Page'!B37 -> Enviropower Ltd
A4: Facility: | B4: =+'Cover Page'!B33:I33 -> Enviropower Ltd | F4: Form: | G4: Performance 1
A6: Reporting Period from: | D6: 2024-01-01 | F6: to: | G6: 2024-12-31
A8: =+A1 -> 2024 | B8: Annual Reporting of Waste Disposal and Recovery
A9: Waste Description | C9: Disposal Route(s) | E9: Disposal Tonnes | G9: Recovery Tonnes | I9: % / tonne of waste incinerated
A10: 1) Hazardous Wastes
A11: APC Residues | C11: 1 | E11: 3365 | G11: 0 | I11: =IF((E11+G11)>0,(E11+G11)/'Operational Data'!$G$21, "-") -> 0.05093483973
A12: IBA | C12: 0 | E12: 0 | G12: 0 | I12: =IF((E12+G12)>0,(E12+G12)/'Operational Data'!$G$21, "-") -> -
I13: =IF((E13+G13)>0,(E13+G13)/'Operational Data'!$G$21, "-") -> -
I14: =IF((E14+G14)>0,(E14+G14)/'Operational Data'!$G$21, "-") -> -
A15: Total Hazardous Waste | E15: =SUM(E11:F14) -> 3365 | G15: =SUM(G11:H14) -> 0 | I15: =IF((E15+G15)>0,(E15+G15)/'Operational Data'!$G$21, "-") -> 0.05093483973
A17: 2) Non-Hazardous Wastes
A18: IBA | C18: 1 | E18: 0 | G18: 6577 | I18: =IF((E18+G18)>0,(E18+G18)/'Operational Data'!$G$21, "-") -> 0.09955377145
A19: Ferrous Metal | C19: 1 | E19: 0 | G19: 39 | I19: =IF((E19+G19)>0,(E19+G19)/'Operational Data'!$G$21, "-") -> 0.0005903294947
A20: Process Water | C20: 0 | E20: 0 | G20: 0 | I20: =IF((E20+G20)>0,(E20+G20)/'Operational Data'!$G$21, "-") -> -
I21: =IF((E21+G21)>0,(E21+G21)/'Operational Data'!$G$21, "-") -> -
I22: =IF((E22+G22)>0,(E22+G22)/'Operational Data'!$G$21, "-") -> -
A23: Total Non-Hazardous Waste | E23: =SUM(E18:F22) -> 0 | G23: =SUM(G18:H22) -> 6616 | I23: =IF((E23+G23)>0,(E23+G23)/'Operational Data'!$G$21, "-") -> 0.1001441009
A24: TOTAL WASTE | E24: =+E23+E15 -> 3365 | G24: =+G23+G15 -> 6616 | I24: =IF((E24+G24)>0,(E24+G24)/'Operational Data'!$G$21, "-") -> 0.1510789407
A26: Operator’s comments :
A31: =+A1 -> 2024 | B31: Annual Reporting of Water and Other Raw Material Usage
A32: Raw Material | E32: Usage | G32: Unit | H32: Specific Usage | J32: Unit
A33: Mains Water | E33: =+'Operational Data'!G42/1000 -> 20374 | G33: m3 | H33: =IF(E33>0,E33/'Operational Data'!$G$21,"-") -> 0.3083941827 | J33: m3/te
A34: Total Water | E34: =+'Operational Data'!G43+'Operational Data'!G42/1000 -> 20374 | G34: m3 | H34: =IF(E34>0,E34/'Operational Data'!$G$21,"-") -> 0.3083941827 | J34: m3/te
A35: Urea / Ammonia | E35: =+'Operational Data'!G45 -> 183000 | G35: kg | H35: =IF(E35>0,E35/'Operational Data'!$G$21,"-") -> 2.770007629 | J35: kg/te
A36: Activated Carbon | E36: =+'Operational Data'!G46 -> 50000 | G36: kg | H36: =IF(E36>0,E36/'Operational Data'!$G$21,"-") -> 0.7568326855 | J36: kg/te
A37: Lime / hydrated lime / Sodium Bicarb. | E37: =+'Operational Data'!G47 -> 2349440 | G37: kg | H37: =IF(E37>0,E37/'Operational Data'!$G$21,"-") -> 35.56265969 | J37: kg/te
A39: Operator’s comments :
A43: =+A31 -> 2024 | B43: Annual Reporting of other performance indicators
A44: Parameter | C44: Results by Line
C45: A1 | D45: A2 | E45: A3 | F45: A4 | G45: A5 | I45: Turbine 1 | J45: Turbine 2
A46: Operating hours for the year, hours | C46: 7649 | D46: 7607 | E46: 0 | F46: 0 | G46: 0 | I46: 7999 | J46: 0
A47: Number of periods of abnormal operation, qty. | C47: 5 | D47: 4 | E47: 0 | F47: 0 | G47: 0 | I47: 0 | J47: 0
A48: Cumulative hours of abnormal operation for this year, hours | C48: 9.5 | D48: 9.5 | E48: 0 | F48: 0 | G48: 0 | I48: 0 | J48: 0
A50: Operator’s comments :
A54: Signed: | B54: J Timms | G54: Date: | H54: 24th January 2025

Sheet Energy Form 1
A1: =+'Cover Page'!C39 -> 2024 | B1: Annual Reporting of Energy Usage/Export
A3: =+'Cover Page'!B31 -> Permit EPR/XP3030XX | F3: Operator: | G3: =+'Cover Page'!B37 -> Enviropower Ltd
A5: Facility: | B5: =+'Cover Page'!B33:I33 -> Enviropower Ltd | F5: Form: | G5: Energy 1
A7: Reporting Period from: | D7: =+'Perf. Form 1'!D6:E6 -> 2024-01-01 | F7: to: | G7: =+'Perf. Form 1'!G6:H6 -> 2024-12-31
A9: Energy Source | D9: Energy Usage | F9: Unit | G9: Specific Usage (KWh/tonne incinerated
A10: Electricity Produced | D10: =+'Operational Data'!G24 -> 32521.75 | F10: MWh | G10: =+'Operational Data'!H24 -> 492.2704678
A11: Electricity Imported | D11: =+'Operational Data'!G27 -> 350.1 | F11: MWh | G11: =+'Operational Data'!H27 -> 5.299342464
A12: Electricity Exported | D12: =+'Operational Data'!G25 -> 23923.9 | F12: MWh | G12: =+'Operational Data'!H25 -> 362.1277897
A13: Gas Oil | F13: tonnes
A14: Steam/hot water exported | D14: =+'Operational Data'!G30 -> 0 | F14: GWh | G14: =+'Operational Data'!H30 -> -
A18: Operator’s comments :
A29: Signed: | B29: J Timms | G29: Date: | H29: 24th January 2025

Sheet Permit Compliance
A1: =+'Cover Page'!$B$29 -> Annual Performance Report 2024 | E1: ='Cover Page'!$B$33 -> Enviropower Ltd
A3: Summary of Permit Compliance
A5: Compliance with permit limits for continuously monitored pollutants
A7: The plant met its emission limits as shown in the table below:
A8: Substance | C8: Percentage time compliant during operationNote 1 | L8: Notes:
C9: Half-hourly limit | F9: Daily limit | L9: Note 1: Please report to 2 decimal places, i.e. xx.xx% Note 2: Please enter into this table any permit non-compliances that the EA has given a CCS score for. Please also enter any other non-compliances which you have notified to the EA (e.g. ELV exceedances) but which have not yet been assessed by the EA. There is no need to enter any notifications which were subsequently assessed by the EA not to be permit breaches. Note 3: Please enter information here (rather than just referencing the notifications that were sent to the EA) including where relevant the incineration line reference, pollutant and value of the measured result for any ELV exceedances.
A10: Particulates | C10: 1 | F10: 1
A11: Oxides of nitrogen | C11: 1 | F11: 1
A12: Sulphur dioxide | C12: 1 | F12: 0.9986
A13: Carbon monoxide | C13: 100.00% 95% of 10-min averages | F13: 1
A14: Total organic carbon | C14: 1 | F14: 1
A15: Hydrogen chloride | C15: 1 | F15: 0.9986
A16: Hydrogen fluoride | C16: xx.xx % | F16: xx.xx %
C17: 1 | F17: 0.9995
A19: Summary of non-compliances under the permit Note 2
A20: Date | B20: Summary of non-compliance Note 3 | D20: Reason | G20: Measures taken to prevent reoccurrence | H20: CCS score if applicable*
H21: Impact | I21: Root cause
A22: 2024-02-18 | B22: Line B - SO2 - 40.82mg/Nm3 | D22: An increase in oxygen levels during the last hour of the day resulted in a period of elevated SO2, taking the daily average slightly above the limit. The elevated levels reduced shortly after midnight and were being controlled as expected. | H22: C4
A23: 2024-11-06 | B23: Line B - HCL - 8.60mg/Nm3 | D23: Abatement product (sodium bicarbonate) unable to control effectively. | G23: We have spoken to the supplier and an investigation was carried out. They have admitted there was a mistake on their part and have asured us that it will not happen again. Additionally to this, we have found an alternative supplier of sodium bicarbonate which we can now use. | H23: C4 | I23: Incorrect abatement product delivered by supplier with no prior notice.
A27: *If the Environment Agency (EA) has given a Compliance Classification Scheme (CCS) score due to a permit non-compliance it should be entered here (CCS4 = No impact; CCS3 = Minor impact; CCS2 = Significant impact; CCS1 = Major impact). If the EA has not yet assessed a non-compliance which you have notified to them, these columns should be left blank.
A29: Summary of any complaints received and actions to taken to resolve them.
A30: Date | B30: Summary of complaint [including Line/Reference] | E30: Reason (including whether substantiated by the operator or the EA) | H30: Measures taken to prevent reoccurrence

Sheet Improvements
A1: =+'Cover Page'!$B$29 -> Annual Performance Report 2024 | E1: =+'Cover Page'!$B$33 -> Enviropower Ltd
A3: Summary of Plant Improvements
A5: Summary of any efficiency improvements that have been completed within the year.
A6: Line A's Bag Filter modified to increase capacity and reduce velocities. Line A's economiser replaced. Line B's economiser replaced.
A16: Summary of any permit improvement conditions that have been completed within the year and the resulting environmental benefits.
A17: 22/02/2024 - IC 2 - The operator shall submit a report to the Environment Agency for approval on whether waste feed to the plant can be proven to have a low and stable mercury content. The report shall have regard to BAT 4 of the BAT conclusions, be based on historic mercury emissions monitoring data and have regard to the Environment Agency Mercury Monitoring Protocol. 22/02/24 - IC 3 - The operator shall submit a report to the Environment Agency for approval on whether dioxin emissions to air are stable. The report shall have regard to BAT 4 of the BAT conclusions, be based on historic dioxin emissions monitoring data and have regard to the Environment Agency Dioxins Monitoring Protocol. 27/06/24 - IC 1 - The operator shall perform a study to determine the extent to which the operation of the current systems in place at the plant to minimise NOx emissions can be further optimised such that emissions are reduced as far as possible below 150 mg/Nm3 as a daily average, without significantly increasing emissions of other pollutants or having a significant negative effect on plant operation, reliability or bottom ash quality. The study shall be based on the results of trials carried out at the installation and shall have regard to the recommendations for test conditions set out in Section 5.4.3 of report titled ‘Establishing factors that influence NOx reduction at waste incineration plant to levels below the upper end of the BAT-AELs’ (dated 14/01/2022), or other methodology agreed in writing with the Environment Agency. A written report of the study shall be submitted to the Environment Agency for approval which shall include but not necessarily be limited to the following: • A brief description of the currently installed measures at the installation to minimise NOx emissions, including details of how the reagent dosing system responds to emissions monitoring data and historic data which illustrates the current achievable level of daily NOx emissions. • The results of trials conducted to further reduce daily average NOx emissions using currently installed measures, including: o a description of the parameters that were varied during the trial e.g. ammonia or urea feed rates, physical form of urea injected, air flows, and the range over which they were varied o the levels of NOx achieved and associated levels of ammonia and nitrous oxide emissions and reagent consumption o observed effects and predicted long-term impacts on plant operation, reliability and maintenance regime o any changes to the composition of the bottom ash and boiler ash and the implications of those changes for the ability to process and use the ash, as well as for the pollution potential of the ash both during processing and its subsequent use as a secondary aggregate o any other relevant cross-media effects The report shall also include a description of the extent to which current systems in place at the plant to minimise NOx emissions can be optimised on a permanent basis, including justification and an implementation plan where relevant. 26/11/24 - IC 4 - The operator shall carry out an assessment of the opportunities to increase the energy efficiency of the installation. The assessment shall include but not necessarily be limited to: • Improvements that could be made to the furnace (including control systems) in order to increase the amount of thermal energy produced per unit of thermal energy in the waste. • Where relevant, improvements that could be made to the steam system and related components to allow a greater quantity of electricity to be generated per unit of thermal energy in the steam. • Improvements in the heat and electrical efficiency of the plant’s ancillary systems that could be made in order to reduce the heat and electrical loads of the plant. • Where relevant, an implementation plan for the improvements identified, including the anticipated increase in the gross and/or net electrical efficiency of the plant which would be achieved. A written copy of the assessment shall be submitted to the Environment Agency for approval.
A27: Summary of any changes to the plant or operating techniques which required a variation to the permit and a summary of the resulting environmental impact.
A28: None.
A38: Summary of any other improvements made to the plant or planned to be made and a summary of the resulting environmental benefits.
A39: None.

Sheet Public Liaison
A1: =+'Cover Page'!$B$29 -> Annual Performance Report 2024 | E1: =+'Cover Page'!$B$33 -> Enviropower Ltd
A3: Details of Public & Stakeholder Liaison
A5: Summary of events held during the reporting year.
A6: Date | C6: Description
A16: List of events planned for next year
A17: Date | C17: Description
A29: If you wish to be involved in the public liaison programme, please contact _________________

Sheet Air (periodic)
A1: =+'Cover Page'!$B$29 -> Annual Performance Report 2024 | E1: =+'Cover Page'!$B$33 -> Enviropower Ltd
A3: Emissions to Air (periodically monitored)
A5: Summary of monitoring undertaken, standards used and compliance | K5: Notes:
A6: Periodic emissions monitoring as per permit requirements. | K6: Template may require adjustment for any bespoke monitoring requirements of permit - please also check that all default ELV values, reference periods and the stated oxygen reference value match those for your plant, and edit if necessary
A9: Results of emissions to air that are periodically monitored - oxygen reference 11%
A10: Substance | C10: Ref. Period | D10: Emission Limit Value | F10: Average | K10: User to add additional tables as necessary, depending on whether quarterly or bi-annual reporting is required for the compliance year
F11: A1 Jan-Jun | G11: A2 Jan-Jun | H11: A1 Jul-Dec | I11: A2 Jul-Dec | J11: A5
A12: Hydrogen fluoride | C12: 1 hr | D12: 1 mg/m3 | F12: 0.2 | G12: 0.37 | H12: 0.03 | I12: 0.1
A13: Cd and Tl and their compounds | C13: 0.5-8hrs | D13: 0.02 mg/m3 | F13: 0.002 | G13: 0.0006 | H13: 0.0004 | I13: 0.0004
A14: Hg and its compounds | C14: 0.5-8hrs | D14: 0.02 mg/m3 | F14: 0.0008 | G14: 0.0016 | H14: 0.0005 | I14: 0.0007
A15: Sb, As, Pb, Cr, Co, Cu, Mn, Ni, V and their compounds | C15: 0.5-8hrs | D15: 0.3 mg/m3 | F15: 0.262 | G15: 0.0223 | H15: 0.0361 | I15: 0.0155
A16: Dioxins & Furans (I-TEQ) | C16: 6-8hrs | D16: 0.06 ng/m3 | F16: 0.0013 | G16: 0.0009 | H16: 0.0027 | I16: 0.0002
A17: PCBs (WHO-TEQ Humans / Mammals) | C17: 6-8hrs | D17: None set ng/m3 | F17: 0.0001 | G17: 0.0001 | H17: 0 | I17: 0
A18: PCBs (WHO-TEQ Fish) | C18: 6-8hrs | D18: None set ng/m3 | F18: 0 | G18: 0 | H18: 0 | I18: 0
A19: PCBs (WHO-TEQ Birds) | C19: 6-8hrs | D19: None set ng/m3 | F19: 0.0007 | G19: 0.0008 | H19: 0.0008 | I19: 0.0004
A20: Dioxins & Furans (WHO-TEQ Humans / Mammals) | C20: 6-8hrs | D20: None set ng/m3 | F20: 0.0013 | G20: 0.0009 | H20: 0.0025 | I20: 0.0003
A21: Dioxins & Furans (WHO-TEQ Fish) | C21: 6-8hrs | D21: None set ng/m3 | F21: 0.0013 | G21: 0.0009 | H21: 0.0027 | I21: 0.0003
A22: Dioxins & Furans (WHO-TEQ Birds) | C22: 6-8hrs | D22: None set ng/m3 | F22: 0.0038 | G22: 0.0021 | H22: 0.0045 | I22: 0.0005
A23: Anthracene | C23: 6-8hrs | D23: None set µg/m3 | F23: 0 | G23: 0 | H23: 0 | I23: 0
A24: Benzo(a)anthracene | C24: 6-8hrs | D24: None set µg/m3 | F24: 0 | G24: 0 | H24: 0 | I24: 0
A25: Benzo(a)pyrene | C25: 6-8hrs | D25: None set µg/m3 | F25: 0 | G25: 0 | H25: 0 | I25: 0
A26: Benzo(b)fluoranthene | C26: 6-8hrs | D26: None set µg/m3 | F26: 0 | G26: 0 | H26: 0 | I26: 0
A27: Benzo(b)naptho(2,1-d) thiophene | C27: 6-8hrs | D27: None set µg/m3 | F27: 0 | G27: 0 | H27: 0 | I27: 0
A28: Benzo(c)phenanthrene | C28: 6-8hrs | D28: None set µg/m3 | F28: 0 | G28: 0 | H28: 0 | I28: 0
A29: Benzo(ghi)perylene | C29: 6-8hrs | D29: None set µg/m3 | F29: 0 | G29: 0 | H29: 0 | I29: 0
A30: Benzo(k)fluoranthene | C30: 6-8hrs | D30: None set µg/m3 | F30: 0 | G30: 0 | H30: 0 | I30: 0
A31: Cholanthrene | C31: 6-8hrs | D31: None set µg/m3 | F31: 0 | G31: 0 | H31: 0 | I31: 0
A32: Chrysene | C32: 6-8hrs | D32: None set µg/m3 | F32: 0 | G32: 0 | H32: 0 | I32: 0
A33: Cyclopenta(cd)pyrene | C33: 6-8hrs | D33: None set µg/m3 | F33: 0 | G33: 0 | H33: 0 | I33: 0
A34: Dibenzo(ai)pyrene | C34: 6-8hrs | D34: None set µg/m3 | F34: 0 | G34: 0 | H34: 0 | I34: 0
A35: Dibenzo(ah)anthracene | C35: 6-8hrs | D35: None set µg/m3 | F35: 0 | G35: 0 | H35: 0 | I35: 0
A36: Fluoranthene | C36: 6-8hrs | D36: None set µg/m3 | F36: 0 | G36: 0 | H36: 0 | I36: 0
A37: Indeno(123-cd) pyrene | C37: 6-8hrs | D37: None set µg/m3 | F37: 0 | G37: 0 | H37: 0 | I37: 0
A38: Naphthalene | C38: 6-8hrs | D38: None set µg/m3 | F38: 0.0001 | G38: 0.0001 | H38: 0.0001 | I38: 0.0001
A39: Comments :

Sheet CO2 N2O
A1: =+'Cover Page'!$B$29 -> Annual Performance Report 2024 | C1: ='Cover Page'!$B$33 -> Enviropower Ltd
A3: Carbon dioxide emissions and biogenic content of waste inputs | F3: Notes:
A5: Carbon dioxide emissions (all types of plant)
B6: Annual mass of carbon dioxide released | C6: tonnes | D6: 62233.23
B7: Annual mass of carbon dioxide released per tonne of waste burned | C7: t CO2 / t waste | D7: 0.942
B8: Annual mass of carbon dioxide released per MWh of energy exported | C8: t CO2 / MWh export | D8: 2.6
B9: Description of how annual carbon dioxide mass emission has been calculated. See Note 1 | C9: using Tolvik report 2022 method: 0.942 tCO2/t waste | F9: Note 1: All permits require operators to continuously monitor CO2 to EN14181 and flow to BS EN 16911-2 (unless otherwise agreed in writing). Operators must therefore use the results from these instruments to calculate their annual CO2 emissions. Where an operator does not have a flow meter calibrated to BS EN 16911-2, the averaged flow measurement from that year's periodic monitoring can be used instead. If the plant does not have calibrated CO2 CEMS, a suitably justified emissions factor can be used.
A10: Nitrous oxide emissions (only plants which use ammonia or urea to abate NOx emissions)
B11: Annual mass emissions of nitrous oxide | C11: tonnes N2O | D11: 6.48
B12: Description of how annual nitrous oxide mass emission has been calculated See Note 2 | C12: using 2021 Pollution Inveontory data method: 0.0981 kgN2O/t waste | F12: Note 2: All permits require operators to continuously monitor N2O to EN14181 and flow to BS EN 16911-2, unless otherwise agreed in writing. Operators must therefore use the results from these instruments to calculate their annual N2O emissions. Where an operator does not have a flow meter calibrated to BS EN 16911-2, the averaged flow measurement from periodic monitoring can be used instead. If the plant does not have calibrated N2O CEMS, data from periodic monitoring or a suitably justified emissions factor can be used instead.
A13: Total annual carbon dioxide + nitrous oxide emissions. See Note 3. | C13: tonnes CO2e | D13: 63950.2 | F13: Note 3: Total annual carbon dioxide and nitrous oxide emissions reported as carbon dioxide equivalent where 1 tonne nitrous oxide is equivalent to 265 tonnes carbon dioxide.
A14: Biogenic CO2 emissions (See Note 4) | F14: Note 4: Only plants combusting residual municipal waste, refuse derived fuel or solid recovered fuel need complete this section.
B15: Percentage of total carbon dioxide emissions arising from biogenic waste | C15: %
B16: No. of measurements undertaken | C16: Number
B17: Description of how percentage biogenic carbon dioxide emissions have been measured or calculated. See Note 5 | F17: Note 5: The results from C14 sampling should be used if this is carried out at the plant (either via an installed sampler or from spot samples). Otherwise, as an approximation (and in lieu of any more accurate metrics which may be developed in future), the measured or estimated biogenic fraction by net calorific value (see Note 6) can be assumed to be the same as the biogenic CO2 fraction of the total CO2 emissions from the plant.
A18: Biogenic fraction of waste feedstock (See Note 4)
B19: Yearly average biogenic percentage of the waste by net calorific value (NCV) | C19: %
B20: Description of how biogenic percentage (by NCV) has been calculated or estimated. See Note 6 | F20: Note 6: If C14 sampling is carried out at the plant, the methodology set out in the embedded document entitled "Renewable Energy Association Energy Content of Fuels - Description of Method" embedded below can be used to calculate the biogenic percentage by net calorific value. Otherwise, data from waste sampling or BIOMA software can be used; or if none of these are available, an estimated figure with justification or a figure assumed on the basis of up-to-date industry data can be used.
B21: Yearly average biogenic percentage of the waste by mass | C21: %
B22: If waste sampling undertaken, no. of samples used to ascertain average biogenic percentages above | C22: Number
B23: Description of how biogenic percentage (by mass) has been calculated or estimated. See Note 7 | F23: Note 7: Where available, data from waste sampling should be used; otherwise, an estimated figure with justification can be used, or a figure assumed on the basis of up-to-date industry data.
B25: Comments:

Sheet Residue Quality
A1: =+'Cover Page'!$B$29 -> Annual Performance Report 2024 | E1: =+'Cover Page'!$B$33 -> Enviropower Ltd
A3: Residue Quality Monitoring Requirements
A5: Summary of monitoring undertaken and compliance
A6: Sampling and analysis as per permit requirements.
A13: Commentary on any specific events
A14: Date & Event | C14: Description
A27: Residue Quality Monitoring Results
A28: Parameter (unit) | C28: Limit* | D28: Normal Operation
D29: Bottom ash | F29: APC Residues
A30: Loss on Ignition (average %) | C30: <5%
A31: Total Organic Carbon (average %) | C31: <3% | D31: <1%
A32: No. of Assessments Undertaken | C32: --- | D32: 4 | F32: 4
A33: No. of Hazardous Results | C33: --- | D33: 0
A34: * The permit will specify a limit of either 5% loss on ignition or 3% total organic carbon. If both are measured anyway, please enter the results here, even where the limit does not apply.
A36: Comments :

Sheet Water
A1: =+'Cover Page'!$B$29 -> Annual Performance Report 2024 | E1: =+'Cover Page'!$B$33 -> Enviropower Ltd
A3: Emissions to Water
A5: Summary of monitoring undertaken and compliance
A6: None.
A13: Commentary on any specific events
A14: Date & Event | C14: Description
A22: Emissions to Water / Sewer
A23: Parameter | D23: Monitoring Frequency | F23: Limit | G23: Target | H23: Max. | I23: Average

Sheet Air (CEMS)
A1: =+'Cover Page'!$B$29 -> Annual Performance Report 2024 | I1: =+'Cover Page'!$B$33 -> Enviropower Ltd
A3: Emissions to Air (continously monitored)
N4: Notes:
A5: Summary of monitoring undertaken, standards used and compliance | N5: Template may require adjustment for any bespoke monitoring requirements of permit
A6: Continuous emissions monitoring as per permit requirements. | N6: Please check that all default ELV values, reference periods and the stated oxygen reference value match those for your plant, and edit if necessary
N7: Report to 1 decimal place
A11: Results of emissions to air that are continuously monitored (maximum and average values for each line) - oxygen reference 11%
A12: Substance | B12: Reference Period | C12: Emission Limit Value | D12: A1 | F12: A2 | H12: A3 | J12: A4 | L12: A5
D13: Max. | E13: Avg. | F13: Max. | G13: Avg. | H13: Max. | I13: Avg. | J13: Max. | K13: Avg. | L13: Max. | M13: Avg.
A14: Oxides of nitrogen | B14: Daily mean | C14: 150 mg/m3 | D14: =NOx!O19 -> 148 | E14: =NOx!N19 -> 142.3166667 | F14: =NOx!O34 -> 148.2 | G14: =NOx!N34 -> 144.5916667
B15: ½ hourly mean* | C15: 300 mg/m3 * | D15: =NOx!M19 -> 222.1 | E15: =NOx!L19 -> 142.075 | F15: =NOx!M34 -> 256.5 | G15: =NOx!L34 -> 144.275
A16: Particulates | B16: Daily mean | C16: 5 mg/m3 | D16: =Particulates!O19 -> 3.7 | E16: =Particulates!N19 -> 0.425 | F16: =Particulates!O34 -> 2.8 | G16: =Particulates!N34 -> 0.3333333333
B17: ½ hourly mean* | C17: 30 mg/m3 * | D17: =Particulates!M19 -> 7.5 | E17: =Particulates!L19 -> 0.4916666667 | F17: =Particulates!M34 -> 4.7 | G17: =Particulates!L34 -> 0.3916666667
A18: Total Organic Carbon | B18: Daily mean | C18: 10 mg/m3 | D18: =TOC!O19 -> 5.5 | E18: =TOC!N19 -> 1.25 | F18: =TOC!O34 -> 3.9 | G18: =TOC!N34 -> 1.066666667
B19: ½ hourly mean* | C19: 20 mg/m3 * | D19: =TOC!M19 -> 21.9 | E19: =TOC!L19 -> 1.316666667 | F19: =TOC!M34 -> 5.4 | G19: =TOC!L34 -> 1.108333333
A20: Hydrogen chloride | B20: Daily mean | C20: 8 mg/m3 | D20: =HCl!O19 -> 8.3 | E20: =HCl!N19 -> 6.733333333 | F20: =HCl!O34 -> 14.1 | G20: =HCl!N34 -> 7.583333333
B21: ½ hourly mean* | C21: 60 mg/m3 * | D21: =HCl!M19 -> 29.1 | E21: =HCl!L19 -> 6.841666667 | F21: =HCl!M34 -> 58 | G21: =HCl!L34 -> 7.716666667
A22: Sulphur dioxide | B22: Daily mean | C22: 40 mg/m3 | D22: ='SO2'!O19 -> 43.2 | E22: ='SO2'!N19 -> 36.11666667 | F22: ='SO2'!O34 -> 40.8 | G22: ='SO2'!N34 -> 22.75
B23: ½ hourly mean* | C23: 200 mg/m3 * | D23: ='SO2'!M19 -> 164.9 | E23: ='SO2'!L19 -> 36.01666667 | F23: ='SO2'!M34 -> 209.9 | G23: ='SO2'!L34 -> 22.99166667
A24: Carbon monoxide | B24: Daily mean | C24: 50 mg/m3 | D24: ='CO 95% 10 min'!Q22 -> 8.6 | E24: ='CO 95% 10 min'!P22 -> 4.583333333 | F24: ='CO 95% 10 min'!Q37 -> 7 | G24: ='CO 95% 10 min'!P37 -> 5.075
B25: 95%ile 10-min avg* | C25: 150 mg/m3 * | D25: ='CO 95% 10 min'!M22 -> 8.216666667 | E25: ='CO 95% 10 min'!N22 -> 4.641666667 | F25: ='CO 95% 10 min'!M37 -> 7.583333333 | G25: ='CO 95% 10 min'!N37 -> 5.116666667
A26: Ammonia | B26: Daily mean | C26: 15 mg/m3 | D26: ='NH3'!O19 -> 0.3 | E26: ='NH3'!N19 -> 0.04166666667 | F26: ='NH3'!O34 -> 0.6 | G26: ='NH3'!N34 -> 0.01666666667
A27: * = delete if your plant does not have these limits
A28: Comments :

Sheet HCl
A1: =+'Cover Page'!$B$29 -> Annual Performance Report 2024 | E1: =+'Cover Page'!$B$33 -> Enviropower Ltd
A3: Monitoring of Hydrogen Chloride emissions | D3: Whole Installation | G3: See Notes in Cell Q3 | J3: =+A3 -> Monitoring of Hydrogen Chloride emissions | N3: Per Combustion Line | Q3: Notes:
Q4: User to add logic to complete Whole installation, Table A5:G18. From the data in Per Combustion Line, Table J6:O79, subject to No. of lines installed
A5: =+'Cover Page'!C39 -> 2024 | B5: 1/2 Hourly Reference Periods | E5: Daily Reference Periods
A6: mg/Nm3 | B6: 1/2 hourly HCl ELV | C6: Monthly mean of half-hourly averages | D6: Highest half- hourly average | E6: Daily HCl ELV | F6: Monthly mean of daily averages | G6: Highest daily average | J6: =+A5 -> 2024 | K6: mg/Nm3 | L6: Monthly 1/2 hourly mean | M6: Monthly 1/2 hourly maximum | N6: Monthly daily mean | O6: Monthly daily maximum
A7: Jan | B7: 60 | C7: =AVERAGE(L7,L22) -> 7.25 | D7: =MAX(M7,M22) -> 19.4 | E7: 8 | F7: =AVERAGE(N7,N22) -> 7.2 | G7: =MAX(O7,O22) -> 7.9 | J7: A1 | K7: Jan | L7: 6.7 | M7: 15 | N7: 6.6 | O7: 7.9
A8: Feb | B8: 60 | C8: =AVERAGE(L8,L23) -> 6.7 | D8: =MAX(M8,M23) -> 21.3 | E8: 8 | F8: =AVERAGE(N8,N23) -> 6.85 | G8: =MAX(O8,O23) -> 7.9 | K8: Feb | L8: 7.7 | M8: 13.6 | N8: 7.7 | O8: 7.9
A9: Mar | B9: 60 | C9: 6.2 | D9: 25 | E9: 8 | F9: 5.75 | G9: 7.9 | K9: Mar | L9: 4.6 | M9: 25 | N9: 3.8 | O9: 7.8 | Q9: Whole Installation table A5:G18:
A10: Apr | B10: 60 | C10: 7.65 | D10: 22.8 | E10: 8 | F10: 7.6 | G10: 8.1 | K10: Apr | L10: 7.5 | M10: 15 | N10: 7.4 | O10: 8.1 | Q10: Mean: for 1/2 hourly and daily periods calculate mean of values across all operational combustion lines for the month
A11: May | B11: 60 | C11: 7.65 | D11: 49.6 | E11: 8 | F11: 7.25 | G11: 7.9 | K11: May | L11: 6.7 | M11: 19.2 | N11: 6.7 | O11: 7.8
A12: Jun | B12: 60 | C12: 7.75 | D12: 58 | E12: 8 | F12: 7.35 | G12: 7.8 | K12: Jun | L12: 7.3 | M12: 29.1 | N12: 7.1 | O12: 7.8
A13: Jul | B13: 60 | C13: 7.2 | D13: 46.2 | E13: 8 | F13: 7.15 | G13: 7.9 | K13: Jul | L13: 6.6 | M13: 15.3 | N13: 6.5 | O13: 7.8 | Q13: Maximum: for 1/2 hourly and daily periods use the highest value across all operational combustion lines for the month
A14: Aug | B14: 60 | C14: 7.6 | D14: 19.2 | E14: 8 | F14: 7.55 | G14: 7.9 | K14: Aug | L14: 7.4 | M14: 13.7 | N14: 7.4 | O14: 7.8
A15: Sep | B15: 60 | C15: 7.45 | D15: 26.3 | E15: 8 | F15: 7.45 | G15: 7.9 | K15: Sep | L15: 7.4 | M15: 17.6 | N15: 7.4 | O15: 7.9
A16: Oct | B16: 60 | C16: 7.35 | D16: 24.4 | E16: 8 | F16: 7.25 | G16: 7.9 | K16: Oct | L16: 7.1 | M16: 16.4 | N16: 7 | O16: 7.8
A17: Nov | B17: 60 | C17: 7.45 | D17: 53.4 | E17: 8 | F17: 7.4 | G17: 14.1 | K17: Nov | L17: 6.7 | M17: 27 | N17: 6.7 | O17: 8.3
A18: Dec | B18: 60 | C18: 7.1 | D18: 24.8 | E18: 8 | F18: 7.1 | G18: 7.8 | K18: Dec | L18: 6.4 | M18: 18.8 | N18: 6.5 | O18: 7.8
K19: Annual | L19: =AVERAGE(L7:L18) -> 6.841666667 | M19: =MAX(M7:M18) -> 29.1 | N19: =AVERAGE(N7:N18) -> 6.733333333 | O19: =MAX(O7:O18) -> 8.3
J21: =+A5 -> 2024 | K21: mg/Nm3 | L21: Monthly 1/2 hourly mean | M21: Monthly 1/2 hourly maximum | N21: Monthly daily mean | O21: Monthly daily maximum
J22: A2 | K22: Jan | L22: 7.8 | M22: 19.4 | N22: 7.8 | O22: 7.8
K23: Feb | L23: 5.7 | M23: 21.3 | N23: 6 | O23: 7.9
K24: Mar | L24: 7.8 | M24: 21.2 | N24: 7.7 | O24: 7.9
K25: Apr | L25: 7.8 | M25: 22.8 | N25: 7.8 | O25: 7.9
K26: May | L26: 8.6 | M26: 49.6 | N26: 7.8 | O26: 7.9
K27: Jun | L27: 8.2 | M27: 58 | N27: 7.6 | O27: 7.8
K28: Jul | L28: 7.8 | M28: 46.2 | N28: 7.8 | O28: 7.9
K29: Aug | L29: 7.8 | M29: 19.2 | N29: 7.7 | O29: 7.9
K30: Sep | L30: 7.5 | M30: 26.3 | N30: 7.5 | O30: 7.9
K31: Oct | L31: 7.6 | M31: 24.4 | N31: 7.5 | O31: 7.9
K32: Nov | L32: 8.2 | M32: 53.4 | N32: 8.1 | O32: 14.1
K33: Dec | L33: 7.8 | M33: 24.8 | N33: 7.7 | O33: 7.8
K34: Annual | L34: =AVERAGE(L22:L33) -> 7.716666667 | M34: =MAX(M22:M33) -> 58 | N34: =AVERAGE(N22:N33) -> 7.583333333 | O34: =MAX(O22:O33) -> 14.1
J36: =+A5 -> 2024 | K36: mg/Nm3 | L36: Monthly 1/2 hourly mean | M36: Monthly 1/2 hourly maximum | N36: Monthly daily mean | O36: Monthly daily maximum
J37: A3 | K37: Jan
K38: Feb
K39: Mar
K40: Apr
K41: May
K42: Jun
K43: Jul
K44: Aug
K45: Sep
K46: Oct
K47: Nov
A48: Comments : | K48: Dec
K49: Annual | L49: =AVERAGE(L37:L48) ->  | M49: =MAX(M37:M48) -> 0 | N49: =AVERAGE(N37:N48) ->  | O49: =MAX(O37:O48) -> 0
J51: =+A5 -> 2024 | K51: mg/Nm3 | L51: Monthly 1/2 hourly mean | M51: Monthly 1/2 hourly maximum | N51: Monthly daily mean | O51: Monthly daily maximum
J52: A4 | K52: Jan
K53: Feb
K54: Mar
K55: Apr
K56: May
K57: Jun
K58: Jul
K59: Aug
K60: Sep
K61: Oct
K62: Nov
K63: Dec
K64: Annual | L64: =AVERAGE(L52:L63) ->  | M64: =MAX(M52:M63) -> 0 | N64: =AVERAGE(N52:N63) ->  | O64: =MAX(O52:O63) -> 0
J66: =+A5 -> 2024 | K66: mg/Nm3 | L66: Monthly 1/2 hourly mean | M66: Monthly 1/2 hourly maximum | N66: Monthly daily mean | O66: Monthly daily maximum
J67: A5 | K67: Jan
K68: Feb
K69: Mar
K70: Apr
K71: May
K72: Jun
K73: Jul
K74: Aug
K75: Sep
K76: Oct
K77: Nov
K78: Dec
K79: Annual | L79: =AVERAGE(L67:L78) ->  | M79: =MAX(M67:M78) -> 0 | N79: =AVERAGE(N67:N78) ->  | O79: =MAX(O67:O78) -> 0

Sheet SO2
A1: =+'Cover Page'!$B$29 -> Annual Performance Report 2024 | E1: =+'Cover Page'!$B$33 -> Enviropower Ltd
A3: Monitoring of Sulphur dioxide emissions | D3: Whole Installation | G3: See Notes in Cell Q3 | J3: =+A3 -> Monitoring of Sulphur dioxide emissions | N3: Per Combustion Line | Q3: Notes:
Q4: User to add logic to complete Whole installation, Table A5:G18. From the data in Per Combustion Line, Table J6:O79, subject to No. of lines installed
A5: =+'Cover Page'!C39 -> 2024 | B5: 1/2 Hourly Reference Periods | E5: Daily Reference Periods
A6: mg/Nm3 | B6: 1/2 hourly SO2 ELV | C6: Monthly mean of half-hourly averages | D6: Highest half- hourly average | E6: Daily SO2 ELV | F6: Monthly mean of daily averages | G6: Highest daily average | J6: =+A5 -> 2024 | K6: mg/Nm3 | L6: Monthly 1/2 hourly mean | M6: Monthly 1/2 hourly maximum | N6: Monthly daily mean | O6: Monthly daily maximum
A7: Jan | B7: 200 | C7: =AVERAGE(L7,L22) -> 31.35 | D7: =MAX(M7,M22) -> 81.1 | E7: 40 | F7: =AVERAGE(N7,N22) -> 31.6 | G7: =MAX(O7,O22) -> 39.5 | J7: A1 | K7: Jan | L7: 37.2 | M7: 81.1 | N7: 37.5 | O7: 39.5
A8: Feb | B8: 200 | C8: =AVERAGE(L8,L23) -> 33.1 | D8: =MAX(M8,M23) -> 209.9 | E8: 40 | F8: =AVERAGE(N8,N23) -> 32.3 | G8: =MAX(O8,O23) -> 40.8 | K8: Feb | L8: 32.8 | M8: 164.9 | N8: 32.1 | O8: 39.5
A9: Mar | B9: 200 | C9: 29.4 | D9: 82.6 | E9: 40 | F9: 30 | G9: 39.5 | K9: Mar | L9: 35.8 | M9: 82.6 | N9: 36.7 | O9: 39.5 | Q9: Whole Installation table A5:G18:
A10: Apr | B10: 200 | C10: 25.4 | D10: 118.5 | E10: 40 | F10: 25.35 | G10: 39.5 | K10: Apr | L10: 34.3 | M10: 118.5 | N10: 34.3 | O10: 39.5 | Q10: Mean: for 1/2 hourly and daily periods calculate mean of values across all operational combustion lines for the month
A11: May | B11: 200 | C11: 30.15 | D11: 123.7 | E11: 40 | F11: 29.35 | G11: 39.6 | K11: May | L11: 37.8 | M11: 123.7 | N11: 37.6 | O11: 39.6
A12: Jun | B12: 200 | C12: 25.05 | D12: 106.2 | E12: 40 | F12: 25.5 | G12: 39.5 | K12: Jun | L12: 32.9 | M12: 106.2 | N12: 33.6 | O12: 39.5
A13: Jul | B13: 200 | C13: 29.4 | D13: 101.1 | E13: 40 | F13: 29.3 | G13: 39.5 | K13: Jul | L13: 36.8 | M13: 101.1 | N13: 36.8 | O13: 39.5 | Q13: Maximum: for 1/2 hourly and daily periods use the highest value across all operational combustion lines for the month
A14: Aug | B14: 200 | C14: 28 | D14: 74.3 | E14: 40 | F14: 27.9 | G14: 39.5 | K14: Aug | L14: 35.6 | M14: 74.3 | N14: 35.5 | O14: 39.5
A15: Sep | B15: 200 | C15: 27.5 | D15: 99.2 | E15: 40 | F15: 27.5 | G15: 39.5 | K15: Sep | L15: 34.2 | M15: 99.2 | N15: 34.2 | O15: 39.5
A16: Oct | B16: 200 | C16: 29.4 | D16: 98.4 | E16: 40 | F16: 29.2 | G16: 39.5 | K16: Oct | L16: 36.5 | M16: 98.4 | N16: 36.8 | O16: 39.5
A17: Nov | B17: 200 | C17: 32.15 | D17: 141.8 | E17: 40 | F17: 32.2 | G17: 43.2 | K17: Nov | L17: 39.1 | M17: 132.9 | N17: 39.1 | O17: 43.2
A18: Dec | B18: 200 | C18: 33.15 | D18: 152.9 | E18: 40 | F18: 33 | G18: 39.5 | K18: Dec | L18: 39.2 | M18: 152.9 | N18: 39.2 | O18: 39.5
K19: Annual | L19: =AVERAGE(L7:L18) -> 36.01666667 | M19: =MAX(M7:M18) -> 164.9 | N19: =AVERAGE(N7:N18) -> 36.11666667 | O19: =MAX(O7:O18) -> 43.2
J21: =+A5 -> 2024 | K21: mg/Nm3 | L21: Monthly 1/2 hourly mean | M21: Monthly 1/2 hourly maximum | N21: Monthly daily mean | O21: Monthly daily maximum
J22: A2 | K22: Jan | L22: 25.5 | M22: 68.2 | N22: 25.7 | O22: 37.4
K23: Feb | L23: 33.4 | M23: 209.9 | N23: 32.5 | O23: 40.8
K24: Mar | L24: 23 | M24: 64.6 | N24: 23.3 | O24: 36.2
K25: Apr | L25: 16.5 | M25: 67.4 | N25: 16.4 | O25: 22.7
K26: May | L26: 22.5 | M26: 91.6 | N26: 21.1 | O26: 29.8
K27: Jun | L27: 17.2 | M27: 56.1 | N27: 17.4 | O27: 26.7
K28: Jul | L28: 22 | M28: 74.9 | N28: 21.8 | O28: 33.2
K29: Aug | L29: 20.4 | M29: 69 | N29: 20.3 | O29: 31.6
K30: Sep | L30: 20.8 | M30: 97.9 | N30: 20.8 | O30: 35.8
K31: Oct | L31: 22.3 | M31: 86.4 | N31: 21.6 | O31: 34.7
K32: Nov | L32: 25.2 | M32: 141.8 | N32: 25.3 | O32: 34.2
K33: Dec | L33: 27.1 | M33: 75.8 | N33: 26.8 | O33: 33.1
K34: Annual | L34: =AVERAGE(L22:L33) -> 22.99166667 | M34: =MAX(M22:M33) -> 209.9 | N34: =AVERAGE(N22:N33) -> 22.75 | O34: =MAX(O22:O33) -> 40.8
J36: =+A5 -> 2024 | K36: mg/Nm3 | L36: Monthly 1/2 hourly mean | M36: Monthly 1/2 hourly maximum | N36: Monthly daily mean | O36: Monthly daily maximum
J37: A3 | K37: Jan
K38: Feb
K39: Mar
K40: Apr
K41: May
K42: Jun
K43: Jul
K44: Aug
K45: Sep
K46: Oct
K47: Nov
A48: Comments : | K48: Dec
K49: Annual | L49: =AVERAGE(L37:L48) ->  | M49: =MAX(M37:M48) -> 0 | N49: =AVERAGE(N37:N48) ->  | O49: =MAX(O37:O48) -> 0
J51: =+A5 -> 2024 | K51: mg/Nm3 | L51: Monthly 1/2 hourly mean | M51: Monthly 1/2 hourly maximum | N51: Monthly daily mean | O51: Monthly daily maximum
J52: A4 | K52: Jan
K53: Feb
K54: Mar
K55: Apr
K56: May
K57: Jun
K58: Jul
K59: Aug
K60: Sep
K61: Oct
K62: Nov
K63: Dec
K64: Annual | L64: =AVERAGE(L52:L63) ->  | M64: =MAX(M52:M63) -> 0 | N64: =AVERAGE(N52:N63) ->  | O64: =MAX(O52:O63) -> 0
J66: =+A5 -> 2024 | K66: mg/Nm3 | L66: Monthly 1/2 hourly mean | M66: Monthly 1/2 hourly maximum | N66: Monthly daily mean | O66: Monthly daily maximum
J67: A5 | K67: Jan
K68: Feb
K69: Mar
K70: Apr
K71: May
K72: Jun
K73: Jul
K74: Aug
K75: Sep
K76: Oct
K77: Nov
K78: Dec
K79: Annual | L79: =AVERAGE(L67:L78) ->  | M79: =MAX(M67:M78) -> 0 | N79: =AVERAGE(N67:N78) ->  | O79: =MAX(O67:O78) -> 0

Sheet NOx
A1: =+'Cover Page'!$B$29 -> Annual Performance Report 2024 | E1: =+'Cover Page'!$B$33 -> Enviropower Ltd
A3: Monitoring of Oxides of Nitrogen emissions | D3: Whole Installation | G3: See Notes in Cell Q3 | J3: =+A3 -> Monitoring of Oxides of Nitrogen emissions | N3: Per Combustion Line | Q3: Notes:
Q4: User to add logic to complete Whole installation, Table A5:G18. From the data in Per Combustion Line, Table J6:O79, subject to No. of lines installed
A5: =+'Cover Page'!C39 -> 2024 | B5: 1/2 Hourly Reference Periods | E5: Daily Reference Periods
A6: mg/Nm3 | B6: 1/2 hourly NOx ELV | C6: Monthly mean of half-hourly averages | D6: Highest half- hourly average | E6: Daily NOx ELV | F6: Monthly mean of daily averages | G6: Highest daily average | J6: =+A5 -> 2024 | K6: mg/Nm3 | L6: Monthly 1/2 hourly mean | M6: Monthly 1/2 hourly maximum | N6: Monthly daily mean | O6: Monthly daily maximum
A7: Jan | B7: 300 | C7: =AVERAGE(L7,L22) -> 147.3 | D7: =MAX(M7,M22) -> 198.6 | E7: 150 | F7: =AVERAGE(N7,N22) -> 147.4 | G7: =MAX(O7,O22) -> 148.1 | J7: A1 | K7: Jan | L7: 147.5 | M7: 185.9 | N7: 147.4 | O7: 148
A8: Feb | B8: 300 | C8: =AVERAGE(L8,L23) -> 147.05 | D8: =MAX(M8,M23) -> 196.4 | E8: 150 | F8: =AVERAGE(N8,N23) -> 147.25 | G8: =MAX(O8,O23) -> 148 | K8: Feb | L8: 146.6 | M8: 190.6 | N8: 147 | O8: 148
A9: Mar | B9: 300 | C9: 147.5 | D9: 180.7 | E9: 150 | F9: 147.5 | G9: 148 | K9: Mar | L9: 147.5 | M9: 180.7 | N9: 147.5 | O9: 148 | Q9: Whole Installation table A5:G18:
A10: Apr | B10: 300 | C10: 146.9 | D10: 210.6 | E10: 150 | F10: 147 | G10: 148.2 | K10: Apr | L10: 146.6 | M10: 195 | N10: 146.8 | O10: 148 | Q10: Mean: for 1/2 hourly and daily periods calculate mean of values across all operational combustion lines for the month
A11: May | B11: 300 | C11: 131.85 | D11: 222.1 | E11: 150 | F11: 133.45 | G11: 148 | K11: May | L11: 131.2 | M11: 222.1 | N11: 132.4 | O11: 147.9
A12: Jun | B12: 300 | C12: 139.7 | D12: 205.2 | E12: 150 | F12: 140.95 | G12: 147.9 | K12: Jun | L12: 137.4 | M12: 205.2 | N12: 138.4 | O12: 147.9
A13: Jul | B13: 300 | C13: 140.3 | D13: 256.5 | E13: 150 | F13: 140.2 | G13: 148.1 | K13: Jul | L13: 133.9 | M13: 190.5 | N13: 133.8 | O13: 147.7 | Q13: Maximum: for 1/2 hourly and daily periods use the highest value across all operational combustion lines for the month
A14: Aug | B14: 300 | C14: 140.4 | D14: 210.7 | E14: 150 | F14: 140.6 | G14: 148 | K14: Aug | L14: 137.1 | M14: 186.6 | N14: 137 | O14: 147.9
A15: Sep | B15: 300 | C15: 144.5 | D15: 219.2 | E15: 150 | F15: 144.55 | G15: 148.1 | K15: Sep | L15: 141.9 | M15: 203.5 | N15: 141.9 | O15: 147.9
A16: Oct | B16: 300 | C16: 144.3 | D16: 202.8 | E16: 150 | F16: 144.45 | G16: 148 | K16: Oct | L16: 145.1 | M16: 199 | N16: 145.6 | O16: 147.9
A17: Nov | B17: 300 | C17: 144.4 | D17: 204.4 | E17: 150 | F17: 144.4 | G17: 147.9 | K17: Nov | L17: 145.1 | M17: 202.1 | N17: 145.1 | O17: 147.9
A18: Dec | B18: 300 | C18: 143.9 | D18: 212.2 | E18: 150 | F18: 143.7 | G18: 148 | K18: Dec | L18: 145 | M18: 199.9 | N18: 144.9 | O18: 148
K19: Annual | L19: =AVERAGE(L7:L18) -> 142.075 | M19: =MAX(M7:M18) -> 222.1 | N19: =AVERAGE(N7:N18) -> 142.3166667 | O19: =MAX(O7:O18) -> 148
J21: =+A5 -> 2024 | K21: mg/Nm3 | L21: Monthly 1/2 hourly mean | M21: Monthly 1/2 hourly maximum | N21: Monthly daily mean | O21: Monthly daily maximum
J22: A2 | K22: Jan | L22: 147.1 | M22: 198.6 | N22: 147.4 | O22: 148.1
K23: Feb | L23: 147.5 | M23: 196.4 | N23: 147.5 | O23: 148
K24: Mar | L24: 147.5 | M24: 176.9 | N24: 147.5 | O24: 147.9
K25: Apr | L25: 147.2 | M25: 210.6 | N25: 147.2 | O25: 148.2
K26: May | L26: 132.5 | M26: 200.3 | N26: 134.5 | O26: 148
K27: Jun | L27: 142 | M27: 189.3 | N27: 143.5 | O27: 147.9
K28: Jul | L28: 146.7 | M28: 256.5 | N28: 146.6 | O28: 148.1
K29: Aug | L29: 143.7 | M29: 210.7 | N29: 144.2 | O29: 148
K30: Sep | L30: 147.1 | M30: 219.2 | N30: 147.2 | O30: 148.1
K31: Oct | L31: 143.5 | M31: 202.8 | N31: 143.3 | O31: 148
K32: Nov | L32: 143.7 | M32: 204.4 | N32: 143.7 | O32: 147.9
K33: Dec | L33: 142.8 | M33: 212.2 | N33: 142.5 | O33: 147.9
K34: Annual | L34: =AVERAGE(L22:L33) -> 144.275 | M34: =MAX(M22:M33) -> 256.5 | N34: =AVERAGE(N22:N33) -> 144.5916667 | O34: =MAX(O22:O33) -> 148.2
J36: =+A5 -> 2024 | K36: mg/Nm3 | L36: Monthly 1/2 hourly mean | M36: Monthly 1/2 hourly maximum | N36: Monthly daily mean | O36: Monthly daily maximum
J37: A3 | K37: Jan
K38: Feb
K39: Mar
K40: Apr
K41: May
K42: Jun
K43: Jul
K44: Aug
K45: Sep
K46: Oct
K47: Nov
A48: Comments : | K48: Dec
K49: Annual | L49: =AVERAGE(L37:L48) ->  | M49: =MAX(M37:M48) -> 0 | N49: =AVERAGE(N37:N48) ->  | O49: =MAX(O37:O48) -> 0
J51: =+A5 -> 2024 | K51: mg/Nm3 | L51: Monthly 1/2 hourly mean | M51: Monthly 1/2 hourly maximum | N51: Monthly daily mean | O51: Monthly daily maximum
J52: A4 | K52: Jan
K53: Feb
K54: Mar
K55: Apr
K56: May
K57: Jun
K58: Jul
K59: Aug
K60: Sep
K61: Oct
K62: Nov
K63: Dec
K64: Annual | L64: =AVERAGE(L52:L63) ->  | M64: =MAX(M52:M63) -> 0 | N64: =AVERAGE(N52:N63) ->  | O64: =MAX(O52:O63) -> 0
J66: =+A5 -> 2024 | K66: mg/Nm3 | L66: Monthly 1/2 hourly mean | M66: Monthly 1/2 hourly maximum | N66: Monthly daily mean | O66: Monthly daily maximum
J67: A5 | K67: Jan
K68: Feb
K69: Mar
K70: Apr
K71: May
K72: Jun
K73: Jul
K74: Aug
K75: Sep
K76: Oct
K77: Nov
K78: Dec
K79: Annual | L79: =AVERAGE(L67:L78) ->  | M79: =MAX(M67:M78) -> 0 | N79: =AVERAGE(N67:N78) ->  | O79: =MAX(O67:O78) -> 0

Sheet TOC
A1: =+'Cover Page'!$B$29 -> Annual Performance Report 2024 | E1: =+'Cover Page'!$B$33 -> Enviropower Ltd
A3: Monitoring of Total organic carbon emissions | D3: Whole Installation | G3: See Notes in Cell Q3 | J3: =+A3 -> Monitoring of Total organic carbon emissions | N3: Per Combustion Line | Q3: Notes:
Q4: User to add logic to complete Whole installation, Table A5:G18. From the data in Per Combustion Line, Table J6:O79, subject to No. of lines installed
A5: =+'Cover Page'!C39 -> 2024 | B5: 1/2 Hourly Reference Periods | E5: Daily Reference Periods
A6: mg/Nm3 | B6: 1/2 hourly TOC ELV | C6: Monthly mean of half-hourly averages | D6: Highest half- hourly average | E6: Daily TOC ELV | F6: Monthly mean of daily averages | G6: Highest daily average | J6: =+A5 -> 2024 | K6: mg/Nm3 | L6: Monthly 1/2 hourly mean | M6: Monthly 1/2 hourly maximum | N6: Monthly daily mean | O6: Monthly daily maximum
A7: Jan | B7: 20 | C7: =AVERAGE(L7,L22) -> 1 | D7: =MAX(M7,M22) -> 10.1 | E7: 10 | F7: =AVERAGE(N7,N22) -> 0.95 | G7: =MAX(O7,O22) -> 1.5 | J7: A1 | K7: Jan | L7: 1.2 | M7: 10.1 | N7: 1.1 | O7: 1.5
A8: Feb | B8: 20 | C8: =AVERAGE(L8,L23) -> 0.75 | D8: =MAX(M8,M23) -> 3.8 | E8: 10 | F8: =AVERAGE(N8,N23) -> 0.7 | G8: =MAX(O8,O23) -> 1.6 | K8: Feb | L8: 1.2 | M8: 3.8 | N8: 1.1 | O8: 1.6
A9: Mar | B9: 20 | C9: 1.45 | D9: 4.6 | E9: 10 | F9: 1.4 | G9: 2.2 | K9: Mar | L9: 1.6 | M9: 4.6 | N9: 1.5 | O9: 2.2 | Q9: Whole Installation table A5:G18:
A10: Apr | B10: 20 | C10: 1.15 | D10: 8 | E10: 10 | F10: 1.1 | G10: 2.9 | K10: Apr | L10: 1.2 | M10: 8 | N10: 1.2 | O10: 2.9 | Q10: Mean: for 1/2 hourly and daily periods calculate mean of values across all operational combustion lines for the month
A11: May | B11: 20 | C11: 1.05 | D11: 3.7 | E11: 10 | F11: 1.05 | G11: 2.2 | K11: May | L11: 1.1 | M11: 3.7 | N11: 1.1 | O11: 2.1
A12: Jun | B12: 20 | C12: 2 | D12: 11 | E12: 10 | F12: 1.8 | G12: 5.5 | K12: Jun | L12: 2.2 | M12: 11 | N12: 2 | O12: 5.5
A13: Jul | B13: 20 | C13: 1.35 | D13: 4.2 | E13: 10 | F13: 1.35 | G13: 2.5 | K13: Jul | L13: 1.4 | M13: 4.2 | N13: 1.4 | O13: 2.1 | Q13: Maximum: for 1/2 hourly and daily periods use the highest value across all operational combustion lines for the month
A14: Aug | B14: 20 | C14: 1.1 | D14: 21.9 | E14: 10 | F14: 1.1 | G14: 1.9 | K14: Aug | L14: 1.1 | M14: 21.9 | N14: 1.1 | O14: 1.9
A15: Sep | B15: 20 | C15: 1.05 | D15: 4.2 | E15: 10 | F15: 1 | G15: 2.3 | K15: Sep | L15: 1.1 | M15: 4.1 | N15: 1 | O15: 2.3
A16: Oct | B16: 20 | C16: 1.2 | D16: 5.4 | E16: 10 | F16: 1.1 | G16: 2.6 | K16: Oct | L16: 1.3 | M16: 4.2 | N16: 1.2 | O16: 2.4
A17: Nov | B17: 20 | C17: 1.25 | D17: 4.2 | E17: 10 | F17: 1.2 | G17: 2.4 | K17: Nov | L17: 1.3 | M17: 4.2 | N17: 1.3 | O17: 2.3
A18: Dec | B18: 20 | C18: 1.2 | D18: 4.3 | E18: 10 | F18: 1.15 | G18: 2.3 | K18: Dec | L18: 1.1 | M18: 3.9 | N18: 1 | O18: 1.7
K19: Annual | L19: =AVERAGE(L7:L18) -> 1.316666667 | M19: =MAX(M7:M18) -> 21.9 | N19: =AVERAGE(N7:N18) -> 1.25 | O19: =MAX(O7:O18) -> 5.5
J21: =+A5 -> 2024 | K21: mg/Nm3 | L21: Monthly 1/2 hourly mean | M21: Monthly 1/2 hourly maximum | N21: Monthly daily mean | O21: Monthly daily maximum
J22: A2 | K22: Jan | L22: 0.8 | M22: 3 | N22: 0.8 | O22: 1.4
K23: Feb | L23: 0.3 | M23: 3 | N23: 0.3 | O23: 1.1
K24: Mar | L24: 1.3 | M24: 4.3 | N24: 1.3 | O24: 2.1
K25: Apr | L25: 1.1 | M25: 4.5 | N25: 1 | O25: 1.9
K26: May | L26: 1 | M26: 3.7 | N26: 1 | O26: 2.2
K27: Jun | L27: 1.8 | M27: 4.9 | N27: 1.6 | O27: 3.9
K28: Jul | L28: 1.3 | M28: 3.7 | N28: 1.3 | O28: 2.5
K29: Aug | L29: 1.1 | M29: 3.5 | N29: 1.1 | O29: 1.8
K30: Sep | L30: 1 | M30: 4.2 | N30: 1 | O30: 1.9
K31: Oct | L31: 1.1 | M31: 5.4 | N31: 1 | O31: 2.6
K32: Nov | L32: 1.2 | M32: 3.7 | N32: 1.1 | O32: 2.4
K33: Dec | L33: 1.3 | M33: 4.3 | N33: 1.3 | O33: 2.3
K34: Annual | L34: =AVERAGE(L22:L33) -> 1.108333333 | M34: =MAX(M22:M33) -> 5.4 | N34: =AVERAGE(N22:N33) -> 1.066666667 | O34: =MAX(O22:O33) -> 3.9
J36: =+A5 -> 2024 | K36: mg/Nm3 | L36: Monthly 1/2 hourly mean | M36: Monthly 1/2 hourly maximum | N36: Monthly daily mean | O36: Monthly daily maximum
J37: A3 | K37: Jan
K38: Feb
K39: Mar
K40: Apr
K41: May
K42: Jun
K43: Jul
K44: Aug
K45: Sep
K46: Oct
K47: Nov
A48: Comments : | K48: Dec
K49: Annual | L49: =AVERAGE(L37:L48) ->  | M49: =MAX(M37:M48) -> 0 | N49: =AVERAGE(N37:N48) ->  | O49: =MAX(O37:O48) -> 0
J51: =+A5 -> 2024 | K51: mg/Nm3 | L51: Monthly 1/2 hourly mean | M51: Monthly 1/2 hourly maximum | N51: Monthly daily mean | O51: Monthly daily maximum
J52: A4 | K52: Jan
K53: Feb
K54: Mar
K55: Apr
K56: May
K57: Jun
K58: Jul
K59: Aug
K60: Sep
K61: Oct
K62: Nov
K63: Dec
K64: Annual | L64: =AVERAGE(L52:L63) ->  | M64: =MAX(M52:M63) -> 0 | N64: =AVERAGE(N52:N63) ->  | O64: =MAX(O52:O63) -> 0
J66: =+A5 -> 2024 | K66: mg/Nm3 | L66: Monthly 1/2 hourly mean | M66: Monthly 1/2 hourly maximum | N66: Monthly daily mean | O66: Monthly daily maximum
J67: A5 | K67: Jan
K68: Feb
K69: Mar
K70: Apr
K71: May
K72: Jun
K73: Jul
K74: Aug
K75: Sep
K76: Oct
K77: Nov
K78: Dec
K79: Annual | L79: =AVERAGE(L67:L78) ->  | M79: =MAX(M67:M78) -> 0 | N79: =AVERAGE(N67:N78) ->  | O79: =MAX(O67:O78) -> 0

Sheet Particulates
A1: =+'Cover Page'!$B$29 -> Annual Performance Report 2024 | E1: =+'Cover Page'!$B$33 -> Enviropower Ltd
A3: Monitoring of Particulate matter emissions | D3: Whole Installation | G3: See Notes in Cell Q3 | J3: =+A3 -> Monitoring of Particulate matter emissions | N3: Per Combustion Line | Q3: Notes:
Q4: User to add logic to complete Whole installation, Table A5:G18. From the data in Per Combustion Line, Table J6:O79, subject to No. of lines installed
A5: =+'Cover Page'!C39 -> 2024 | B5: 1/2 Hourly Reference Periods | E5: Daily Reference Periods
A6: mg/Nm3 | B6: 1/2 hourly PM ELV | C6: Monthly mean of half-hourly averages | D6: Highest half- hourly average | E6: Daily PM ELV | F6: Monthly mean of daily averages | G6: Highest daily average | J6: =+A5 -> 2024 | K6: mg/Nm3 | L6: Monthly 1/2 hourly mean | M6: Monthly 1/2 hourly maximum | N6: Monthly daily mean | O6: Monthly daily maximum
A7: Jan | B7: 30 | C7: =AVERAGE(L7,L22) -> 0.3 | D7: =MAX(M7,M22) -> 2.5 | E7: 5 | F7: =AVERAGE(N7,N22) -> 0.3 | G7: =MAX(O7,O22) -> 1 | J7: A1 | K7: Jan | L7: 0.4 | M7: 2 | N7: 0.4 | O7: 0.7
A8: Feb | B8: 30 | C8: =AVERAGE(L8,L23) -> 0.35 | D8: =MAX(M8,M23) -> 1.9 | E8: 5 | F8: =AVERAGE(N8,N23) -> 0.35 | G8: =MAX(O8,O23) -> 0.7 | K8: Feb | L8: 0.5 | M8: 1.9 | N8: 0.5 | O8: 0.7
A9: Mar | B9: 30 | C9: 0.2 | D9: 1.6 | E9: 5 | F9: 0.1 | G9: 0.7 | K9: Mar | L9: 0.1 | M9: 1.6 | N9: 0 | O9: 0.7 | Q9: Whole Installation table A5:G18:
A10: Apr | B10: 30 | C10: 0.1 | D10: 3.1 | E10: 5 | F10: 0.1 | G10: 2.4 | K10: Apr | L10: 0.2 | M10: 3.1 | N10: 0.2 | O10: 2.4 | Q10: Mean: for 1/2 hourly and daily periods calculate mean of values across all operational combustion lines for the month
A11: May | B11: 30 | C11: 0.45 | D11: 4.1 | E11: 5 | F11: 0.35 | G11: 2.9 | K11: May | L11: 0.4 | M11: 4.1 | N11: 0.3 | O11: 2.9
A12: Jun | B12: 30 | C12: 0.45 | D12: 1.4 | E12: 5 | F12: 0.35 | G12: 1 | K12: Jun | L12: 0.3 | M12: 1.4 | N12: 0.2 | O12: 0.5
A13: Jul | B13: 30 | C13: 0.55 | D13: 3.2 | E13: 5 | F13: 0.45 | G13: 1.7 | K13: Jul | L13: 0.5 | M13: 3.2 | N13: 0.4 | O13: 1.7 | Q13: Maximum: for 1/2 hourly and daily periods use the highest value across all operational combustion lines for the month
A14: Aug | B14: 30 | C14: 0.9 | D14: 4.4 | E14: 5 | F14: 0.8 | G14: 2.8 | K14: Aug | L14: 0.9 | M14: 3.9 | N14: 0.8 | O14: 2.2
A15: Sep | B15: 30 | C15: 1.4 | D15: 7.5 | E15: 5 | F15: 1.4 | G15: 3.7 | K15: Sep | L15: 1.7 | M15: 7.5 | N15: 1.7 | O15: 3.7
A16: Oct | B16: 30 | C16: 0.3 | D16: 6.4 | E16: 5 | F16: 0.15 | G16: 0.8 | K16: Oct | L16: 0.5 | M16: 6.4 | N16: 0.3 | O16: 0.8
A17: Nov | B17: 30 | C17: 0.05 | D17: 1.1 | E17: 5 | F17: 0.05 | G17: 0.5 | K17: Nov | L17: 0.1 | M17: 1.1 | N17: 0.1 | O17: 0.5
A18: Dec | B18: 30 | C18: 0.25 | D18: 1.6 | E18: 5 | F18: 0.15 | G18: 0.7 | K18: Dec | L18: 0.3 | M18: 1.6 | N18: 0.2 | O18: 0.7
K19: Annual | L19: =AVERAGE(L7:L18) -> 0.4916666667 | M19: =MAX(M7:M18) -> 7.5 | N19: =AVERAGE(N7:N18) -> 0.425 | O19: =MAX(O7:O18) -> 3.7
J21: =+A5 -> 2024 | K21: mg/Nm3 | L21: Monthly 1/2 hourly mean | M21: Monthly 1/2 hourly maximum | N21: Monthly daily mean | O21: Monthly daily maximum
J22: A2 | K22: Jan | L22: 0.2 | M22: 2.5 | N22: 0.2 | O22: 1
K23: Feb | L23: 0.2 | M23: 1 | N23: 0.2 | O23: 0.4
K24: Mar | L24: 0.3 | M24: 1.1 | N24: 0.2 | O24: 0.4
K25: Apr | L25: 0 | M25: 0.4 | N25: 0 | O25: 0.1
K26: May | L26: 0.5 | M26: 4.1 | N26: 0.4 | O26: 1.7
K27: Jun | L27: 0.6 | M27: 1.4 | N27: 0.5 | O27: 1
K28: Jul | L28: 0.6 | M28: 2 | N28: 0.5 | O28: 0.9
K29: Aug | L29: 0.9 | M29: 4.4 | N29: 0.8 | O29: 2.8
K30: Sep | L30: 1.1 | M30: 4.7 | N30: 1.1 | O30: 2.6
K31: Oct | L31: 0.1 | M31: 1.8 | N31: 0 | O31: 0.6
K32: Nov | L32: 0 | M32: 0.2 | N32: 0 | O32: 0.1
K33: Dec | L33: 0.2 | M33: 0.8 | N33: 0.1 | O33: 0.4
K34: Annual | L34: =AVERAGE(L22:L33) -> 0.3916666667 | M34: =MAX(M22:M33) -> 4.7 | N34: =AVERAGE(N22:N33) -> 0.3333333333 | O34: =MAX(O22:O33) -> 2.8
J36: =+A5 -> 2024 | K36: mg/Nm3 | L36: Monthly 1/2 hourly mean | M36: Monthly 1/2 hourly maximum | N36: Monthly daily mean | O36: Monthly daily maximum
J37: A3 | K37: Jan
K38: Feb
K39: Mar
K40: Apr
K41: May
K42: Jun
K43: Jul
K44: Aug
K45: Sep
K46: Oct
K47: Nov
A48: Comments : | K48: Dec
K49: Annual | L49: =AVERAGE(L37:L48) ->  | M49: =MAX(M37:M48) -> 0 | N49: =AVERAGE(N37:N48) ->  | O49: =MAX(O37:O48) -> 0
J51: =+A5 -> 2024 | K51: mg/Nm3 | L51: Monthly 1/2 hourly mean | M51: Monthly 1/2 hourly maximum | N51: Monthly daily mean | O51: Monthly daily maximum
J52: A4 | K52: Jan
K53: Feb
K54: Mar
K55: Apr
K56: May
K57: Jun
K58: Jul
K59: Aug
K60: Sep
K61: Oct
K62: Nov
K63: Dec
K64: Annual | L64: =AVERAGE(L52:L63) ->  | M64: =MAX(M52:M63) -> 0 | N64: =AVERAGE(N52:N63) ->  | O64: =MAX(O52:O63) -> 0
J66: =+A5 -> 2024 | K66: mg/Nm3 | L66: Monthly 1/2 hourly mean | M66: Monthly 1/2 hourly maximum | N66: Monthly daily mean | O66: Monthly daily maximum
J67: A5 | K67: Jan
K68: Feb
K69: Mar
K70: Apr
K71: May
K72: Jun
K73: Jul
K74: Aug
K75: Sep
K76: Oct
K77: Nov
K78: Dec
K79: Annual | L79: =AVERAGE(L67:L78) ->  | M79: =MAX(M67:M78) -> 0 | N79: =AVERAGE(N67:N78) ->  | O79: =MAX(O67:O78) -> 0

Sheet CO 0.5 hourly
A1: =+'Cover Page'!$B$29 -> Annual Performance Report 2024 | E1: =+'Cover Page'!$B$33 -> Enviropower Ltd
A3: Monitoring of Carbon Monoxide (half hourly) | D3: Whole Installation | G3: See Notes in Cell Q3 | J3: =+A3 -> Monitoring of Carbon Monoxide (half hourly) | N3: Per Combustion Line | Q3: Notes:
A5: If your plant has no short-term (half-hourly or 10-minute) CO ELVs, please complete this tab (stating "none" in the 1/2 hourly CO column) and ignore the CO 95% 10 min tab; otherwise, complete the relevant CO tab for your plant
Q7: User to add logic to complete Whole installation, Table A5:G18. From the data in Per Combustion Line, Table J6:O79, subject to No. of lines installed
A8: =+'Cover Page'!C39 -> 2024 | B8: 1/2 Hourly Reference Periods | E8: Daily Reference Periods
A9: mg/Nm3 | B9: 1/2 hourly CO ELV | C9: Monthly mean of half-hourly averages | D9: Highest half- hourly average | E9: Daily CO ELV | F9: Monthly mean of daily averages | G9: Highest daily average | J9: =+A8 -> 2024 | K9: mg/Nm3 | L9: Monthly 1/2 hourly mean | M9: Monthly 1/2 hourly maximum | N9: Monthly daily mean | O9: Monthly daily maximum
A10: Jan | B10: ELV or None | E10: 75 | J10: A1 | K10: Jan
A11: Feb | B11: ELV or None | E11: =+E10 -> 75 | K11: Feb
A12: Mar | B12: ELV or None | E12: =+E11 -> 75 | K12: Mar | Q12: Whole Installation table A5:G18:
A13: Apr | B13: ELV or None | E13: 75 | K13: Apr | Q13: Mean: for 1/2 hourly and daily periods calculate mean of values across all operational combustion lines for the month
A14: May | B14: ELV or None | E14: 75 | K14: May
A15: Jun | B15: ELV or None | E15: 75 | K15: Jun
A16: Jul | B16: ELV or None | E16: 75 | K16: Jul | Q16: Maximum: for 1/2 hourly and daily periods use the highest value across all operational combustion lines for the month
A17: Aug | B17: ELV or None | E17: 75 | K17: Aug
A18: Sep | B18: ELV or None | E18: 75 | K18: Sep
A19: Oct | B19: ELV or None | E19: 75 | K19: Oct
A20: Nov | B20: ELV or None | E20: 75 | K20: Nov
A21: Dec | B21: ELV or None | E21: 75 | K21: Dec
K22: Annual | L22: =AVERAGE(L10:L21) ->  | M22: =MAX(M10:M21) -> 0 | N22: =AVERAGE(N10:N21) ->  | O22: =MAX(O10:O21) -> 0
J24: =+A8 -> 2024 | K24: mg/Nm3 | L24: Monthly 1/2 hourly mean | M24: Monthly 1/2 hourly maximum | N24: Monthly daily mean | O24: Monthly daily maximum
J25: A2 | K25: Jan
K26: Feb
K27: Mar
K28: Apr
K29: May
K30: Jun
K31: Jul
K32: Aug
K33: Sep
K34: Oct
K35: Nov
K36: Dec
K37: Annual | L37: =AVERAGE(L25:L36) ->  | M37: =MAX(M25:M36) -> 0 | N37: =AVERAGE(N25:N36) ->  | O37: =MAX(O25:O36) -> 0
J39: =+A8 -> 2024 | K39: mg/Nm3 | L39: Monthly 1/2 hourly mean | M39: Monthly 1/2 hourly maximum | N39: Monthly daily mean | O39: Monthly daily maximum
J40: A3 | K40: Jan
K41: Feb
K42: Mar
K43: Apr
K44: May
K45: Jun
K46: Jul
K47: Aug
K48: Sep
K49: Oct
K50: Nov
A51: Comments : | K51: Dec
K52: Annual | L52: =AVERAGE(L40:L51) ->  | M52: =MAX(M40:M51) -> 0 | N52: =AVERAGE(N40:N51) ->  | O52: =MAX(O40:O51) -> 0
J54: =+A8 -> 2024 | K54: mg/Nm3 | L54: Monthly 1/2 hourly mean | M54: Monthly 1/2 hourly maximum | N54: Monthly daily mean | O54: Monthly daily maximum
J55: A4 | K55: Jan
K56: Feb
K57: Mar
K58: Apr
K59: May
K60: Jun
K61: Jul
K62: Aug
K63: Sep
K64: Oct
K65: Nov
K66: Dec
K67: Annual | L67: =AVERAGE(L55:L66) ->  | M67: =MAX(M55:M66) -> 0 | N67: =AVERAGE(N55:N66) ->  | O67: =MAX(O55:O66) -> 0
J69: =+A9 -> mg/Nm3 | K69: mg/Nm3 | L69: Monthly 1/2 hourly mean | M69: Monthly 1/2 hourly maximum | N69: Monthly daily mean | O69: Monthly daily maximum
J70: A5 | K70: Jan
K71: Feb
K72: Mar
K73: Apr
K74: May
K75: Jun
K76: Jul
K77: Aug
K78: Sep
K79: Oct
K80: Nov
K81: Dec
K82: Annual | L82: =AVERAGE(L70:L81) ->  | M82: =MAX(M70:M81) -> 0 | N82: =AVERAGE(N70:N81) ->  | O82: =MAX(O70:O81) -> 0

Sheet CO 95% 10 min
A1: =+'Cover Page'!$B$29 -> Annual Performance Report 2024 | E1: =+'Cover Page'!$B$33 -> Enviropower Ltd
A3: Monitoring of Carbon Monoxide (10-minute avg) | E3: Whole Installation | H3: See Notes in Cell S3 | J3: =+A3 -> Monitoring of Carbon Monoxide (10-minute avg) | O3: Per Combustion Line | Q3: Notes: | S3: Notes:
A5: If your plant has no short-term (half-hourly or 10-minute) CO ELVs, please ignore this tab and instead complete the CO 0.5 hourly tab; otherwise, please complete the relevant CO tab for your plant
S7: User to add logic to complete Whole installation, Table A5:H18. From the data in Per Combustion Line, Table K6:Q79, subject to No. of lines installed
A8: =+'Cover Page'!C39 -> 2024 | B8: 10-minute Reference Periods | F8: Daily Reference Periods
A9: mg/Nm3 | B9: 95%ile 10-min avg CO ELV | C9: Highest daily 95%ile 10-min average | D9: Monthly mean of 10-min averages | E9: Highest 10-min average | F9: Daily CO ELV | G9: Monthly mean of daily averages | H9: Highest daily average | K9: =+A8 -> 2024 | L9: mg/Nm3 | M9: 95%ile 10-min avg maximum | N9: Monthly CO 10-min avg mean | O9: 10-min avg maximum | P9: Monthly daily mean | Q9: Monthly daily maximum
A10: Jan | B10: 150 | C10: =MAX(M10,M25) -> 8.7 | D10: =AVERAGE(N10,N25) -> 5.3 | E10: =MAX(O10,O25) -> 175.7 | F10: 50 | G10: =AVERAGE(P10,P25) -> 5.25 | H10: =MAX(Q10,Q25) -> 7 | K10: A1 | L10: Jan | M10: 7.7 | N10: 4.9 | O10: 175.7 | P10: 4.9 | Q10: 6
A11: Feb | B11: 150 | C11: 10.3 | D11: 5 | E11: 62.6 | F11: =+F10 -> 50 | G11: 5 | H11: 8.3 | L11: Feb | M11: 10.3 | N11: 5.4 | O11: 62.6 | P11: 5.4 | Q11: 8.3
A12: Mar | B12: 150 | C12: 7.6 | D12: 4.25 | E12: 74.3 | F12: =+F11 -> 50 | G12: 4.2 | H12: 6.1 | L12: Mar | M12: 6.6 | N12: 3.6 | O12: 74.3 | P12: 3.4 | Q12: 4.9 | S12: Whole Installation table A5:H18:
A13: Apr | B13: 150 | C13: 7.3 | D13: 4.4 | E13: 48.9 | F13: 50 | G13: 4.3 | H13: 5.8 | L13: Apr | M13: 7 | N13: 3.8 | O13: 48.9 | P13: 3.7 | Q13: 5.4 | S13: Mean: for 10-min and daily periods use average of all operational combustion lines.
A14: May | B14: 150 | C14: 6.7 | D14: 4.4 | E14: 9 | F14: 50 | G14: 4.3 | H14: 5.6 | L14: May | M14: 6.7 | N14: 4 | O14: 8.2 | P14: 3.9 | Q14: 4.8
A15: Jun | B15: 150 | C15: 7.6 | D15: 4.95 | E15: 8.6 | F15: 50 | G15: 4.85 | H15: 6.5 | L15: Jun | M15: 7.6 | N15: 4.8 | O15: 8.6 | P15: 4.7 | Q15: 6.5
A16: Jul | B16: 150 | C16: 8.8 | D16: 5 | E16: 13.6 | F16: 50 | G16: 5 | H16: 6.8 | L16: Jul | M16: 8.8 | N16: 5.1 | O16: 13.6 | P16: 5.1 | Q16: 6.8 | S16: Maximum: for 10-min and daily periods use the highest of all operational combustion lines in any month.
A17: Aug | B17: 150 | C17: 11.8 | D17: 5.5 | E17: 168.1 | F17: 50 | G17: 5.5 | H17: 8.6 | L17: Aug | M17: 11.8 | N17: 5.7 | O17: 168.1 | P17: 5.7 | Q17: 8.6
A18: Sep | B18: 150 | C18: 10.7 | D18: 5.7 | E18: 35.6 | F18: 50 | G18: 5.7 | H18: 8.3 | L18: Sep | M18: 10.7 | N18: 5.9 | O18: 35.6 | P18: 5.9 | Q18: 8.3
A19: Oct | B19: 150 | C19: 7.7 | D19: 5.05 | E19: 55.5 | F19: 50 | G19: 4.9 | H19: 6.2 | L19: Oct | M19: 7.4 | N19: 4.6 | O19: 24.8 | P19: 4.4 | Q19: 6
A20: Nov | B20: 150 | C20: 7.8 | D20: 4.75 | E20: 166.1 | F20: 50 | G20: 4.7 | H20: 6.3 | L20: Nov | M20: 7 | N20: 4.2 | O20: 166.1 | P20: 4.2 | Q20: 5.5
A21: Dec | B21: 150 | C21: =MAX(M21,M36) -> 7 | D21: =AVERAGE(N21,N36) -> 4.25 | E21: =MAX(O21,O36) -> 16.9 | F21: 50 | G21: =AVERAGE(P21,P36) -> 4.25 | H21: =MAX(Q21,Q36) -> 5.6 | L21: Dec | M21: 7 | N21: 3.7 | O21: 16.9 | P21: 3.7 | Q21: 5.4
L22: Annual | M22: =AVERAGE(M10:M21) -> 8.216666667 | N22: =AVERAGE(N10:N21) -> 4.641666667 | O22: =MAX(O10:O21) -> 175.7 | P22: =AVERAGE(P10:P21) -> 4.583333333 | Q22: =MAX(Q10:Q21) -> 8.6
K24: =+A8 -> 2024 | L24: mg/Nm3 | M24: 95%ile 10-min avg maximum | N24: Monthly CO 10-min avg mean | O24: 10-min avg maximum | P24: Monthly daily mean | Q24: Monthly daily maximum
K25: A2 | L25: Jan | M25: 8.7 | N25: 5.7 | O25: 9.8 | P25: 5.6 | Q25: 7
L26: Feb | M26: 7.7 | N26: 4.6 | O26: 8.4 | P26: 4.6 | Q26: 6
L27: Mar | M27: 7.6 | N27: 4.9 | O27: 8.1 | P27: 5 | Q27: 6.1
L28: Apr | M28: 7.3 | N28: 5 | O28: 9 | P28: 4.9 | Q28: 5.8
L29: May | M29: 6.7 | N29: 4.8 | O29: 9 | P29: 4.7 | Q29: 5.6
L30: Jun | M30: 7.2 | N30: 5.1 | O30: 8 | P30: 5 | Q30: 6.4
L31: Jul | M31: 7 | N31: 4.9 | O31: 9.6 | P31: 4.9 | Q31: 5.6
L32: Aug | M32: 8.5 | N32: 5.3 | O32: 38.9 | P32: 5.3 | Q32: 6.5
L33: Sep | M33: 8 | N33: 5.5 | O33: 22.5 | P33: 5.5 | Q33: 6.4
L34: Oct | M34: 7.7 | N34: 5.5 | O34: 55.5 | P34: 5.4 | Q34: 6.2
L35: Nov | M35: 7.8 | N35: 5.3 | O35: 8.7 | P35: 5.2 | Q35: 6.3
L36: Dec | M36: 6.8 | N36: 4.8 | O36: 9.2 | P36: 4.8 | Q36: 5.6
L37: Annual | M37: =AVERAGE(M25:M36) -> 7.583333333 | N37: =AVERAGE(N25:N36) -> 5.116666667 | O37: =MAX(O25:O36) -> 55.5 | P37: =AVERAGE(P25:P36) -> 5.075 | Q37: =MAX(Q25:Q36) -> 7
K39: =+A8 -> 2024 | L39: mg/Nm3 | M39: 95%ile 10-min avg maximum | N39: Monthly CO 10-min avg mean | O39: 10-min avg maximum | P39: Monthly daily mean | Q39: Monthly daily maximum
K40: A3 | L40: Jan
L41: Feb
L42: Mar
L43: Apr
L44: May
L45: Jun
L46: Jul
L47: Aug
L48: Sep
L49: Oct
L50: Nov
A51: Comments : | L51: Dec
A52: Environment Agency explanatory note: The 10-minute average ELV is based on the “95th percentile”. In this case this means that 95% of the 10 minute averages in the relevant 24-hour period (i.e. 137) must be below 150 mg/Nm3, and 5% (i.e. 7) are allowed to be any value above 150 mg/Nm3. Whilst we expect operators to minimise CO emissions at all times, it is perfectly acceptable for the value of the maximum 10-minute average to be above 150 mg/Nm3, provided the 95th percentile ELV has been met for that period. | L52: Annual | M52: =AVERAGE(M40:M51) ->  | O52: =MAX(O40:O51) -> 0 | P52: =AVERAGE(P40:P51) ->  | Q52: =MAX(Q40:Q51) -> 0
K54: =+A8 -> 2024 | L54: mg/Nm3 | M54: 95%ile 10-min avg maximum | N54: Monthly CO 10-min avg mean | O54: 10-min avg maximum | P54: Monthly daily mean | Q54: Monthly daily maximum
K55: A4 | L55: Jan
L56: Feb
L57: Mar
L58: Apr
L59: May
L60: Jun
L61: Jul
L62: Aug
L63: Sep
L64: Oct
L65: Nov
L66: Dec
L67: Annual | M67: =AVERAGE(M55:M66) ->  | O67: =MAX(O55:O66) -> 0 | P67: =AVERAGE(P55:P66) ->  | Q67: =MAX(Q55:Q66) -> 0
K69: =+A8 -> 2024 | L69: mg/Nm3 | M69: 95%ile 10-min avg maximum | N69: Monthly CO 10-min avg mean | O69: 10-min avg maximum | P69: Monthly daily mean | Q69: Monthly daily maximum
K70: A5 | L70: Jan
L71: Feb
L72: Mar
L73: Apr
L74: May
L75: Jun
L76: Jul
L77: Aug
L78: Sep
L79: Oct
L80: Nov
L81: Dec
L82: Annual | M82: =AVERAGE(M70:M81) ->  | O82: =MAX(O70:O81) -> 0 | P82: =AVERAGE(P70:P81) ->  | Q82: =MAX(Q70:Q81) -> 0

Sheet NH3
A1: =+'Cover Page'!$B$29 -> Annual Performance Report 2024 | E1: =+'Cover Page'!$B$33 -> Enviropower Ltd
A3: Monitoring of Ammnonia emissions | D3: Whole Installation | G3: See Notes in Cell Q3 | J3: =+A3 -> Monitoring of Ammnonia emissions | N3: Per Combustion Line | Q3: Notes:
Q4: User to add logic to complete Whole installation, Table A5:G18. From the data in Per Combustion Line, Table J6:O79, subject to No. of lines installed
A5: =+'Cover Page'!C39 -> 2024 | B5: 1/2 Hourly Reference Periods | E5: Daily Reference Periods
A6: mg/Nm3 | B6: 1/2 hourly NH3 ELV | C6: Monthly mean of half-hourly averages | D6: Highest half- hourly average | E6: Daily NH3 ELV | F6: Monthly mean of daily averages | G6: Highest daily average | J6: =+A5 -> 2024 | K6: mg/Nm3 | L6: Monthly 1/2 hourly mean | M6: Monthly 1/2 hourly maximum | N6: Monthly daily mean | O6: Monthly daily maximum
A7: Jan | B7: None | C7: =AVERAGE(L7,L22) -> 0.1 | D7: =MAX(M7,M22) -> 1.3 | E7: 15 | F7: =AVERAGE(N7,N22) -> 0.05 | G7: =MAX(O7,O22) -> 0.2 | J7: A1 | K7: Jan | L7: 0.1 | M7: 1.3 | N7: 0.1 | O7: 0.2
A8: Feb | B8: =+B7 -> None | C8: =AVERAGE(L8,L23) -> 0.15 | D8: =MAX(M8,M23) -> 14.2 | E8: 15 | F8: =AVERAGE(N8,N23) -> 0.05 | G8: =MAX(O8,O23) -> 0.3 | K8: Feb | L8: 0.1 | M8: 1.2 | N8: 0.1 | O8: 0.2
A9: Mar | B9: =+B8 -> None | C9: 0.1 | D9: 1.3 | E9: 15 | F9: 0 | G9: 0.2 | K9: Mar | L9: 0.1 | M9: 1 | N9: 0 | O9: 0.1 | Q9: Whole Installation table A5:G18:
A10: Apr | B10: None | C10: 0.05 | D10: 1.2 | E10: 15 | F10: 0 | G10: 0.2 | K10: Apr | L10: 0.1 | M10: 1 | N10: 0 | O10: 0.2 | Q10: Mean: for 1/2 hourly and daily periods calculate mean of values across all operational combustion lines for the month
A11: May | B11: None | C11: 0.05 | D11: 1.6 | E11: 15 | F11: 0 | G11: 0.2 | K11: May | L11: 0.1 | M11: 0.7 | N11: 0 | O11: 0.2
A12: Jun | B12: None | C12: 0.05 | D12: 1.3 | E12: 15 | F12: 0 | G12: 0.2 | K12: Jun | L12: 0.1 | M12: 0.8 | N12: 0 | O12: 0.2
A13: Jul | B13: None | C13: 0.05 | D13: 1.3 | E13: 15 | F13: 0 | G13: 0.1 | K13: Jul | L13: 0.1 | M13: 1 | N13: 0 | O13: 0.1 | Q13: Maximum: for 1/2 hourly and daily periods use the highest value across all operational combustion lines for the month
A14: Aug | B14: None | C14: 0.05 | D14: 1.2 | E14: 15 | F14: 0 | G14: 0.2 | K14: Aug | L14: 0.1 | M14: 1.1 | N14: 0 | O14: 0.2
A15: Sep | B15: None | C15: 0.1 | D15: 11 | E15: 15 | F15: 0.1 | G15: 0.6 | K15: Sep | L15: 0.1 | M15: 1.4 | N15: 0.1 | O15: 0.3
A16: Oct | B16: None | C16: 0.1 | D16: 4.2 | E16: 15 | F16: 0.1 | G16: 0.5 | K16: Oct | L16: 0.1 | M16: 0.8 | N16: 0.1 | O16: 0.3
A17: Nov | B17: None | C17: 0.1 | D17: 1.4 | E17: 15 | F17: 0.05 | G17: 0.3 | K17: Nov | L17: 0.1 | M17: 1.4 | N17: 0.1 | O17: 0.3
A18: Dec | B18: None | C18: 0.1 | D18: 1.4 | E18: 15 | F18: 0 | G18: 0.2 | K18: Dec | L18: 0.1 | M18: 1.3 | N18: 0 | O18: 0.2
K19: Annual | L19: =AVERAGE(L7:L18) -> 0.1 | M19: =MAX(M7:M18) -> 1.4 | N19: =AVERAGE(N7:N18) -> 0.04166666667 | O19: =MAX(O7:O18) -> 0.3
J21: =+A5 -> 2024 | K21: mg/Nm3 | L21: Monthly 1/2 hourly mean | M21: Monthly 1/2 hourly maximum | N21: Monthly daily mean | O21: Monthly daily maximum
J22: A2 | K22: Jan | L22: 0.1 | M22: 1 | N22: 0 | O22: 0.2
K23: Feb | L23: 0.2 | M23: 14.2 | N23: 0 | O23: 0.3
K24: Mar | L24: 0.1 | M24: 1.3 | N24: 0 | O24: 0.2
K25: Apr | L25: 0 | M25: 1.2 | N25: 0 | O25: 0.1
K26: May | L26: 0 | M26: 1.6 | N26: 0 | O26: 0.2
K27: Jun | L27: 0 | M27: 1.3 | N27: 0 | O27: 0.1
K28: Jul | L28: 0 | M28: 1.3 | N28: 0 | O28: 0.1
K29: Aug | L29: 0 | M29: 1.2 | N29: 0 | O29: 0.1
K30: Sep | L30: 0.1 | M30: 11 | N30: 0.1 | O30: 0.6
K31: Oct | L31: 0.1 | M31: 4.2 | N31: 0.1 | O31: 0.5
K32: Nov | L32: 0.1 | M32: 1.3 | N32: 0 | O32: 0.2
K33: Dec | L33: 0.1 | M33: 1.4 | N33: 0 | O33: 0.2
K34: Annual | L34: =AVERAGE(L22:L33) -> 0.06666666667 | M34: =MAX(M22:M33) -> 14.2 | N34: =AVERAGE(N22:N33) -> 0.01666666667 | O34: =MAX(O22:O33) -> 0.6
J36: =+A5 -> 2024 | K36: mg/Nm3 | L36: Monthly 1/2 hourly mean | M36: Monthly 1/2 hourly maximum | N36: Monthly daily mean | O36: Monthly daily maximum
J37: A3 | K37: Jan
K38: Feb
K39: Mar
K40: Apr
K41: May
K42: Jun
K43: Jul
K44: Aug
K45: Sep
K46: Oct
K47: Nov
A48: Comments : | K48: Dec
A49: An indicated ELV value of zero in the table above means that no ammonia limit is/was set in the permit. | K49: Annual | L49: =AVERAGE(L37:L48) ->  | M49: =MAX(M37:M48) -> 0 | N49: =AVERAGE(N37:N48) ->  | O49: =MAX(O37:O48) -> 0
J51: =+A5 -> 2024 | K51: mg/Nm3 | L51: Monthly 1/2 hourly mean | M51: Monthly 1/2 hourly maximum | N51: Monthly daily mean | O51: Monthly daily maximum
J52: A4 | K52: Jan
K53: Feb
K54: Mar
K55: Apr
K56: May
K57: Jun
K58: Jul
K59: Aug
K60: Sep
K61: Oct
K62: Nov
K63: Dec
K64: Annual | L64: =AVERAGE(L52:L63) ->  | M64: =MAX(M52:M63) -> 0 | N64: =AVERAGE(N52:N63) ->  | O64: =MAX(O52:O63) -> 0
J66: =+A5 -> 2024 | K66: mg/Nm3 | L66: Monthly 1/2 hourly mean | M66: Monthly 1/2 hourly maximum | N66: Monthly daily mean | O66: Monthly daily maximum
J67: A5 | K67: Jan
K68: Feb
K69: Mar
K70: Apr
K71: May
K72: Jun
K73: Jul
K74: Aug
K75: Sep
K76: Oct
K77: Nov
K78: Dec
K79: Annual | L79: =AVERAGE(L67:L78) ->  | M79: =MAX(M67:M78) -> 0 | N79: =AVERAGE(N67:N78) ->  | O79: =MAX(O67:O78) -> 0

Sheet Template changes log
A1: Log of changes to template (Environment Agency use only)
A3: Date | B3: Description of change | C3: New version number and date
A4: 2024-09-23 | B4: Air (periodic) tab: corrected symbol for Thallium to Tl
A5: 2024-09-23 | B5: Air (periodic) tab: removed last year's references to different emission limit values applying from 03/12/23 and updated all relevant ELVs
A6: 2024-09-23 | B6: Tabs for continuously monitored pollutants (HCl, SO2 etc.): changed terminology in table headings to improve clarity
A7: 2024-09-23 | B7: Tabs for continuously monitored pollutants (HCl, SO2 etc.): removed last year's references to different emission limit values applying from 03/12/23 and updated all relevant ELVs
A8: 2024-09-23 | B8: Perf 1 tab: updated formula for water usage to report m3 rather than litres and corrected error with formula copying operator name
A9: 2024-09-23 | B9: CO2 N2O tab: various changes made to notes to reflect the fact that most plants should now have calibrated CEMS and flow meters + some have C14 samplers and more up to date industry data | C9: Version 24b (for co-incinerators) - 23/09/24
A10: 2024-11-08 | B10: CO2 N2O tab: Changed the N2O CO2 equivalence factor from 298 to 265 in line with recently updated government greenhouse gas figures: https://www.gov.uk/government/publications/greenhouse-gas-reporting-conversion-factors-2024
A11: 2024-11-08 | B11: CO2 N2O tab: Added an additional requirement for municipal EfW plants to state the yearly average biogenic percentage of the waste by mass, and reference to a document which sets out a methodology for calculating NCV of waste from the results of C14 sampling.
A12: 2024-11-08 | B12: Permit Compliance tab: Two additional columns added + explanatory notes to the table entitled "Summary of non-compliances under the permit" to allow CCS scores to be stated where relevant.
A13: 2024-11-08 | B13: Residue Quality tab: Note added explaining application of TOC and LOI limits and asking operators to report both metrics where measured. | C13: Version 24.1b (for co-incinerators) - 08/11/24
A14: 2024-11-27 | B14: Operational Summary tab: table added on start-ups and shut-downs | C14: Version 24.2b (for co-incinerators) -27/11/24
